{"text_format":"1","workbook":"xlsx","n_sheets":4,"sheets":["Stikprøve","Tabel til manuel brug","Metode","Beregninger"],"not_rendered":{"charts":8,"images":3,"macros":1,"external_links":0,"defined_names":0,"comments":0,"pivot_tables":0},"unopened":[],"bounds":{"document_bytes":16777216,"sheet_cells":100000,"rows_first":2000,"rows_last":500,"rows_between":2000,"halvings":0,"cell_chars":16384,"cell_head_chars":4096},"cells_cut":0,"cells_raw":0,"read":"whole","date_system":"1900"}

{"sheet":"Stikprøve","index":0,"n_rows":177,"n_cols":23,"rows_kept":177,"cut":false,"hidden":false,"merged":[[55,17,58,25],[43,17,46,25],[42,17,42,20],[42,22,42,24],[19,17,19,25],[28,17,28,25],[30,17,30,20],[30,22,30,24],[31,17,34,25],[36,17,36,20],[37,17,40,25],[36,22,36,24],[20,17,26,25],[48,22,48,24],[49,17,52,25],[48,17,48,21],[43,15,44,15],[54,17,54,21],[54,22,54,24],[32,9,33,11],[32,12,33,12],[32,13,33,14],[5,1,5,14],[6,1,6,14],[7,5,7,9],[7,10,7,13],[7,1,7,4],[9,1,10,14],[13,1,14,14],[16,1,16,14],[36,3,36,5],[20,9,20,11],[19,1,19,6],[36,1,36,2],[11,1,12,14],[21,9,22,14],[27,9,28,11],[24,12,25,12],[24,9,25,11],[27,12,28,12],[27,13,28,14],[24,13,25,14],[85,17,85,26],[84,20,84,26],[68,17,68,26],[63,20,63,26],[61,17,61,28],[67,17,67,26],[64,17,64,26],[66,20,66,26]]}
[]
[]
[null,"Vurdering af resultat fra stikprøvekontrol på varmeenergimålere"]
[null,"Komplet måler - husholdning - dobbelt stikprøveplan",null,null,null,null,null,null,null,null,null,null,null,"2020-03-09"]
[]
[null,"Iht. bekendtgørelse nr. 582 af 28. maj 2018 skal en instrumentejer etablere en egenkontrol, der giver tilstrækkelig sikkerhed for, at brugstolerancen ikke overskrides på varmeenergimålere, der anvendes til afregning. "]
[null,"Brugstolerancen er lig med det dobbelte af den tolerance, som var gældende, da varmeenergimåleren blev bragt i omsætning (også kaldet verifikationsfejlsgrænsen). "]
[null,"Yderligere informationer kan findes følgende steder: ",null,null,null,"Måleteknisk vejledning CLM.VARME.01 ",null,null,null,null,"Sikkerhedsstyrelsens vejledning nr. 9464 af 20. juni 2018"]
[]
[null,"Vigtigt: Dette værktøj kan anvendes af instrumentejere (og målelaboratorier) som hjælp til at vurdere et stikprøveresultat og fastsætte tiden til næste stikprøve. Værktøjet er lavet ud fra de målepunkter, som er angivet i den måletekniske vejledning CLM.VARME.01 for en komplet måler, der anvendes i husholdninger, og kan ikke anvendes for stikprøver, hvor der anvendes andre målepunkter eller for målere i erhverv/industri."]
[]
[null,"Værktøjet adskiller sig dog fra metoden i CLM.VARME.01 ved, at målernes afvigelser vurderes ift. 9 kontrolgrænser i stedet for 3. Det betyder, at hvor metoden i CLM.VARME.01 kan give en forlængelse på 0, 3, 6 eller 9 år, så kan dette værktøj give fra 0 til 9 år med alle mellemliggende år."]
[]
[null,"Det er altid instrumentejerens ansvar, at afregningsmålere overholder brugstolerancen, og derfor også dennes ansvar at beslutte, hvornår der for de konkrete målere skal udføres stikprøver. Det anbefales, at der også søges vejledning om dette ved det anvendte målerlaboratorium og eventuelt ved producenten af det konkrete måleinstrument. Vurderinger af de måletekniske forhold mm. kan skrives i de grå felter i højre side."]
[]
[]
[null,"Vejledning: Udfyld de grønne felter. Resultater og anbefaling vises i de orange felter. Anvend ikke anbefalingen ukritisk. Tag altid selv stilling til, om anbefalingen virker fornuftig ift. stikprøven og øvrig viden om partiet.  "]
[]
[]
[null,"Skema med målepunkter fra CLM.VARME.01 - Husholdninger, komplet måler: ",null,null,null,null,null,null,null,"Vurdering efter 1. stikprøve:",null,null,null,null,null,null,null,"Generelle bemærkninger til vurdering af resultat:"]
[null,null,null,null,null,null,null,null,null,"(se fanen \"Metode\" for forklaring bag vurderingen)"]
[null,null,null,null,null,null,null,null,null,"Ud fra summen af afvigende målere i de tre målepunkter og stikprøvens godkendelsestal anbefales det, at der maksimalt gives følgende antal år til næste stikprøve eller udskiftning på baggrund af første stikprøve alene: "]
[]
[]
[null,null,null,null,null,null,null,null,null,"Maksimalt antal år til næste stikprøve eller udskiftning ud fra 1. stikprøve alene:",null,null,{"$f":"IF(ISBLANK(D49),\"\",Beregninger!Y26)","v":""},{"$f":"IF(M25=0,\"Ingen forlængelse. Nedtag hurtigst muligt\",\"\")","v":""}]
[]
[]
[null,null,null,null,null,null,null,null,null,"Hvis 2. stikprøve laves, er det muligt, at vurderingen vil ende et sted i følgende interval alt efter udfaldet af 2. stikprøve:",null,null,{"$f":"\"fra 0 til \"&Beregninger!AE26&\" år\"","v":"fra 0 til 9 år"},{"$f":"IF(Beregninger!AE26=M25,\"Udtag ikke 2. stikprøve. Ingen yderligere forlængelse mulig.\",\"\")","v":""}]
[null,null,null,null,null,null,null,null,null,null,null,null,null,null,null,null,null,"Vurderingspunkter i henold til den måletekniske vejledning CLM.VARME.01 Bilag 3:"]
[]
[null,null,null,null,null,null,null,null,null,"Vurdering efter 1.+2. stikprøve:",null,null,null,null,null,null,null,"Målertypens godkendelsesperiode:",null,null,null,null,"Tryk her for forklaring"]
[]
[null,null,null,null,null,null,null,null,null,"På baggrund af 1.+2. stikprøve kan partiet forlænges med følgende antal år til næste stikprøve eller udskiftning:",null,null,{"$f":"IF(ISBLANK(L49),\"\",Beregninger!AT25)","v":""},{"$f":"IF(M33=0,\"Ingen forlængelse. Nedtag hurtigst muligt\",\"\")","v":""}]
[]
[]
[]
[null,"Parti-identifikation:",null,null,null,null,null,null,null,null,null,null,null,null,null,null,null,"Komponentlevetid:",null,null,null,null,"Tryk her for forklaring"]
[]
[null,"Indsæt partistørrelse:",null,500," min. 4 og maks. 3.200 "]
[]
[null,"1. stikprøve",null,null,null,null,null,null,null,"2. stikprøve - udtages kun hvis det ønskes efter resultatet fra 1. stikprøve"]
[null,"Stikprøvestørrelse:",null,{"$f":"Beregninger!G3","v":32},"= udtag dette antal målere",null,null,null,null,"Stikprøvestørrelse:",null,{"$f":"Beregninger!I3","v":32},"= udtag dette antal målere"]
[null,"Godkendelsestal:",null,{"$f":"Beregninger!G4","v":2},"(anvendes i beregninger)",null,null,null,null,"Godkendelsestal:",null,{"$f":"Beregninger!I4","v":6},"(anvendes i beregninger)",null,null,null,null,"Vandkvalitet:",null,null,null,null,"Tryk her for forklaring"]
[null,"Forkastelsestal:",null,{"$f":"Beregninger!G5","v":5},"(anvendes i beregninger)",null,null,null,null,"Forkastelsestal:",null,{"$f":"Beregninger!I5","v":7},"(anvendes i beregninger)"]
[]
[null,"Indsæt kontrolresultater for alle målerne udtaget i 1. stikprøve:",null,null,null,null,null,null,null,"Indsæt kontrolresultater for alle målerne udtaget i 2. stikprøve:"]
[]
[null,"Nr.:","Måler-identifikation:","Afvigelse punkt 1 [%]:","Afvigelse punkt 2 [%]:","Afvigelse punkt 3 [%]:",null,null,null,"Nr.:","Måler-identifikation:","Afvigelse punkt 1 [%]:","Afvigelse punkt 2 [%]:","Afvigelse    punkt 3 [%]:"]
[{"$f":"ISNUMBER(B49)","v":true},{"$f":"IF($D$42>=ROW(A1),ROW(A1),\"\")","v":1},null,null,null,null,null,null,{"$f":"ISNUMBER(J49)","v":true},{"$f":"IF($L$42>=ROW(A1),ROW(A1),\"\")","v":1},null,null,null,null,null,null,null,"Erfaringsgrundlag for opsætningsområdet:",null,null,null,null,"Tryk her for forklaring"]
[{"$f":"ISNUMBER(B50)","v":true},{"$f":"IF($D$42>=ROW(A2),ROW(A2),\"\")","v":2},null,null,null,null,null,null,{"$f":"ISNUMBER(J50)","v":true},{"$f":"IF($L$42>=ROW(A2),ROW(A2),\"\")","v":2}]
[true,3,null,null,null,null,null,null,true,3]
[true,4,null,null,null,null,null,null,true,4]
[true,5,null,null,null,null,null,null,true,5]
[true,6,null,null,null,null,null,null,true,6]
[true,7,null,null,null,null,null,null,true,7,null,null,null,null,null,null,null,"Erfaringsgrundlag for målertypen:",null,null,null,null,"Tryk her for forklaring"]
[true,8,null,null,null,null,null,null,true,8]
[true,9,null,null,null,null,null,null,true,9]
[true,10,null,null,null,null,null,null,true,10]
[true,11,null,null,null,null,null,null,true,11]
[true,12,null,null,null,null,null,null,true,12]
[true,13,null,null,null,null,null,null,true,13]
[true,14,null,null,null,null,null,null,true,14,null,null,null,null,null,null,null,"Præsentation af kontrolresultater fordelt på intervaller for afvigelse:"]
[true,15,null,null,null,null,null,null,true,15,null,null,null,null,null,null,null,"Forklaring af vurdering efter 1. stikprøve:"]
[true,16,null,null,null,null,null,null,true,16,null,null,null,null,null,null,null,"Hvis mere end ",null,{"$f":"D43","v":2},"(godkendelsestallet i 1. stikprøve) målere efter 1. stikprøve overskrider"]
[true,17,null,null,null,null,null,null,true,17,null,null,null,null,null,null,null,"den nedre grænse for afvigelsen i et givent interval, ender partiet i dette interval.  "]
[true,18,null,null,null,null,null,null,true,18]
[true,19,null,null,null,null,null,null,true,19,null,null,null,null,null,null,null,"Hvis mindst",null,{"$f":"D44","v":5},"(forkastelsestallet i 1. stikprøve) målere efter 1. stikprøve overskrider den "]
[true,20,null,null,null,null,null,null,true,20,null,null,null,null,null,null,null,"øvre grænse for afvigelsen i et givent interval, forkastes partiet i dette interval, og kan heller ikke "]
[true,21,null,null,null,null,null,null,true,{"$f":"IF($L$42>=ROW(A21),ROW(A21),\"\")","v":21},null,null,null,null,null,null,null,"godkendes i intervallet efter 2. stikprøve (markeret på graferne med gennemsigtig rød søjle)."]
[{"$f":"ISNUMBER(B70)","v":true},{"$f":"IF($D$42>=ROW(A22),ROW(A22),\"\")","v":22},null,null,null,null,null,null,true,{"$f":"IF($L$42>=ROW(A22),ROW(A22),\"\")","v":22}]
[{"$f":"ISNUMBER(B71)","v":true},23,null,null,null,null,null,null,true,23]
[true,24,null,null,null,null,null,null,true,24]
[true,25,null,null,null,null,null,null,true,25]
[true,26,null,null,null,null,null,null,true,26]
[true,27,null,null,null,null,null,null,true,27]
[true,28,null,null,null,null,null,null,true,28]
[true,29,null,null,null,null,null,null,true,29]
[true,30,null,null,null,null,null,null,true,30]
[true,31,null,null,null,null,null,null,true,31]
[true,32,null,null,null,null,null,null,true,32]
[false,"",null,null,null,null,null,null,false,""]
[false,"",null,null,null,null,null,null,false,""]
[false,"",null,null,null,null,null,null,false,""]
[false,"",null,null,null,null,null,null,false,"",null,null,null,null,null,null,null,"Forklaring af vurdering efter 2. stikprøve:"]
[false,"",null,null,null,null,null,null,false,"",null,null,null,null,null,null,null,"Hvis mere end ",null,{"$f":"$L$43","v":6},"(godkendelsestallet i 1.+2. stikprøve) målere efter 1. + 2. stikprøve "]
[false,"",null,null,null,null,null,null,false,"",null,null,null,null,null,null,null,"overskrider den nedre grænse for afvigelsen i et givent interval, ender partiet i dette interval.  "]
[false,"",null,null,null,null,null,null,false,""]
[false,"",null,null,null,null,null,null,false,""]
[false,"",null,null,null,null,null,null,false,""]
[false,"",null,null,null,null,null,null,false,""]
[false,"",null,null,null,null,null,null,false,""]
[false,"",null,null,null,null,null,null,false,""]
[false,"",null,null,null,null,null,null,false,""]
[false,"",null,null,null,null,null,null,false,""]
[false,"",null,null,null,null,null,null,false,""]
[false,"",null,null,null,null,null,null,false,""]
[false,"",null,null,null,null,null,null,false,""]
[false,"",null,null,null,null,null,null,false,""]
[false,"",null,null,null,null,null,null,false,""]
[false,"",null,null,null,null,null,null,false,""]
[false,"",null,null,null,null,null,null,false,"",null,null,null,null,null,null,null,"Fordeling af målere på intervallerne i de enkelte målepunkter efter 1. stikprøve (intervalværdier er afrundet):"]
[false,"",null,null,null,null,null,null,false,""]
[false,"",null,null,null,null,null,null,false,""]
[false,"",null,null,null,null,null,null,false,""]
[false,"",null,null,null,null,null,null,false,""]
[false,"",null,null,null,null,null,null,false,""]
[false,"",null,null,null,null,null,null,false,""]
[false,"",null,null,null,null,null,null,false,""]
[false,"",null,null,null,null,null,null,false,""]
[false,"",null,null,null,null,null,null,false,""]
[false,"",null,null,null,null,null,null,false,""]
[false,"",null,null,null,null,null,null,false,""]
[false,"",null,null,null,null,null,null,false,""]
[{"$f":"ISNUMBER(B114)","v":false},{"$f":"IF($D$42>=ROW(A66),ROW(A66),\"\")","v":""},null,null,null,null,null,null,{"$f":"ISNUMBER(J114)","v":false},{"$f":"IF($L$42>=ROW(A66),ROW(A66),\"\")","v":""}]
[false,"",null,null,null,null,null,null,false,""]
[false,"",null,null,null,null,null,null,false,""]
[false,"",null,null,null,null,null,null,false,""]
[false,"",null,null,null,null,null,null,false,""]
[false,"",null,null,null,null,null,null,false,""]
[false,"",null,null,null,null,null,null,false,""]
[false,"",null,null,null,null,null,null,false,""]
[false,"",null,null,null,null,null,null,false,""]
[false,"",null,null,null,null,null,null,false,""]
[false,"",null,null,null,null,null,null,false,""]
[false,"",null,null,null,null,null,null,false,""]
[false,"",null,null,null,null,null,null,false,""]
[false,"",null,null,null,null,null,null,false,""]
[false,"",null,null,null,null,null,null,false,""]
[{"$f":"ISNUMBER(B124)","v":false}]
[false]
[false]
[false]
[false]
[false]
[false]
[false]
[false]
[false]
[false]
[false,null,null,null,null,null,null,null,null,null,null,null,null,null,null,null,null,"Fordeling af målere på intervallerne i de enkelte målepunkter efter 1. + 2. stikprøve (intervalværdier er afrundet):"]
[false]
[false]
[false]
[false]
[false]
[false]
[false]
[false]
[false]
[false]
[false]
[false]
[false]
[false]
[false]
[false]
[false]
[false]
[false]
[false]
[false]
[false]
[false]
[false]
[false]
[false]
[false]
[false]
[false]
[false]
[false]
[false]
[false]
[false]
[false,{"$f":"IF($D$42>=ROW(A134),ROW(A134),\"\")","v":""}]
[false,{"$f":"IF($D$42>=ROW(A135),ROW(A135),\"\")","v":""}]
[false,{"$f":"IF($D$42>=ROW(A136),ROW(A136),\"\")","v":""}]

{"sheet":"Tabel til manuel brug","index":1,"n_rows":159,"n_cols":13,"rows_kept":159,"cut":false,"hidden":false,"merged":[[3,1,3,3],[2,12,3,20],[2,5,2,7],[2,8,2,10],[4,1,4,3],[4,5,5,5],[4,6,4,7],[4,9,4,10],[4,12,6,20],[23,12,23,23],[24,12,26,20],[10,12,13,20],[15,12,18,20],[19,12,21,20]]}
[]
[]
[null,null,null,null,null,"1. stikprøve (udføres altid)",null,null,"2. stikprøve (udføres hvis 1. stikprøveresultat ikke er entydigt)",null,null,null,"Partiinddeling af målere (afsnit 3.1. i CLM.VARME.01)\nMålerbestanden inddeles i partier med ensartede karakteristika, således at resultatet fra stikprøvekontrollen kan betragtes som repræsentativt for det parti, som målerne er udtaget fra. "]
[null,"Partistørrelse",null,null,null,"Stikprøve-størrelse","Godkendelsestal ","Forkastelsestal","Stikprøvestørrelse","Godkendelsestal ","Forkastelsestal"]
[null,"Det samlede antal målere i partiet",null,null,"Stikprøvestørrelse 1.+2.","Antal målere heraf der skal stikprøvekon-trolleres i 1. stikprøve","Antal målere i 1. stikprøve \nsom overskrider kontrolgrænserne",null,"Antal målere heraf der skal stikprøve-kontrolleres i 2. stikprøve","Antal målere i 1.+2. stikprøve \nsom overskrider\nkontrolgrænserne",null,null,"Målerne skal som minimum:\n– have samme måleprincip f.eks. vingehjulsmålere, magnetisk induktive målere eller ultralydsmålere,\n– være af samme type, fabrikat og størrelse, og\n– være opsat inden for en periode på maksimalt 2 år.\n"]
[null,null,null,null,null,null,"højst","mindst",null,"højst","mindst"]
[null,{"$f":"B8-1","v":90},"-",90,16,8,0,2,{"$f":"E7-F7","v":8},1,2]
[null,91,"-",{"$f":"B9-1","v":96},17,9,0,2,8,1,2]
[null,97,"-",102,18,9,0,2,9,1,2]
[null,103,"-",108,19,10,0,2,9,1,2]
[null,109,"-",114,20,10,0,2,10,1,2,null,"Målerne i et parti skal desuden have nogenlunde ens driftsbetingelser. Hvis en instrumentejer har meget forskellige driftsbetingelser forskellige steder i nettet, er det derfor vigtigt, at instrumentejeren danner partier af målere, så der inden for det enkelte parti undgås forskellige driftsbetingelser.\n"]
[null,115,"-",119,21,11,0,2,10,1,2]
[null,120,"-",120,21,11,0,2,10,1,2]
[null,121,"-",126,22,11,0,2,11,1,2]
[null,127,"-",132,23,12,0,2,11,1,2]
[null,133,"-",138,24,12,0,2,12,1,2,null,"Herudover skal man være opmærksom på, at der er forskellige tolerancekrav til målere, som hhv. anvendes i husholdninger og i erhvervsmiljøer og lette industrimiljøer. Se yderligere i afsnit 5.2.\n"]
[null,139,"-",144,25,13,0,2,12,1,2]
[null,145,"-",{"$f":"B19-1","v":149},26,13,0,2,13,1,2]
[null,150,"-",150,26,13,0,3,13,3,4]
[null,151,"-",{"$f":"B21-1","v":159},27,14,0,3,13,3,4,null,"Flere instrumentejere kan gå sammen om at danne partier, hvis ovenstående betingelser overholdes, og må-lerne har ens driftsbetingelser."]
[null,160,"-",{"$f":"B22-1","v":168},28,14,0,3,14,3,4]
[null,169,"-",177,29,15,0,3,14,3,4]
[null,178,"-",187,30,15,0,3,15,3,4]
[null,188,"-",196,31,16,0,3,15,3,4,null,"Yderligere vejledning til manuel brug"]
[null,197,"-",205,32,16,0,3,16,3,4,null,"Yderligere forklaring og eksempel på anvendelse af metoden kan findes i den måletekniske vejledning CLM.VARME.01 afsnit 4.2. "]
[null,206,"-",215,33,17,0,3,16,3,4]
[null,216,"-",224,34,17,0,3,17,3,4]
[null,225,"-",233,35,18,0,3,17,3,4]
[null,234,"-",242,36,18,0,3,18,3,4]
[null,243,"-",252,37,19,0,3,18,3,4]
[null,253,"-",261,38,19,0,3,19,3,4]
[null,262,"-",270,39,20,0,3,19,3,4]
[null,271,"-",279,40,20,0,3,20,3,4]
[null,280,"-",280,40,20,1,3,20,4,5]
[null,281,"-",289,41,21,1,3,20,4,5]
[null,290,"-",298,42,21,1,3,21,4,5]
[null,299,"-",307,43,22,1,3,21,4,5]
[null,308,"-",316,44,22,1,3,22,4,5]
[null,317,"-",325,45,23,1,3,22,4,5]
[null,326,"-",335,46,23,1,3,23,4,5]
[null,336,"-",344,47,24,1,3,23,4,5]
[null,345,"-",353,48,24,1,3,24,4,5]
[null,354,"-",362,49,25,1,3,24,4,5]
[null,363,"-",371,50,25,1,3,25,4,5]
[null,372,"-",380,51,26,1,3,25,4,5]
[null,381,"-",389,52,26,1,3,26,4,5]
[null,390,"-",390,52,26,1,4,26,5,6]
[null,391,"-",399,53,27,1,4,26,5,6]
[null,400,"-",408,54,27,1,4,27,5,6]
[null,409,"-",417,55,28,1,4,27,5,6]
[null,418,"-",426,56,28,1,4,28,5,6]
[null,427,"-",435,57,29,1,4,28,5,6]
[null,436,"-",445,58,29,1,4,29,5,6]
[null,446,"-",454,59,30,1,4,29,5,6]
[null,455,"-",463,60,30,1,4,30,5,6]
[null,464,"-",472,61,31,1,4,30,5,6]
[null,473,"-",481,62,31,1,4,31,5,6]
[null,482,"-",490,63,32,1,4,31,5,6]
[null,491,"-",499,64,32,1,4,32,5,6]
[null,500,"-",500,64,32,2,5,32,6,7]
[null,501,"-",519,65,33,2,5,32,6,7]
[null,520,"-",538,66,33,2,5,33,6,7]
[null,539,"-",558,67,34,2,5,33,6,7]
[null,559,"-",577,68,34,2,5,34,6,7]
[null,578,"-",597,69,35,2,5,34,6,7]
[null,598,"-",616,70,35,2,5,35,6,7]
[null,617,"-",636,71,36,2,5,35,6,7]
[null,637,"-",655,72,36,2,5,36,6,7]
[null,656,"-",675,73,37,2,5,36,6,7]
[null,676,"-",694,74,37,2,5,37,6,7]
[null,695,"-",{"$f":"B72-1","v":713},75,38,2,5,{"$f":"E71-F71","v":37},6,7]
[null,714,"-",733,76,38,2,5,38,6,7]
[null,734,"-",752,77,39,2,5,38,7,8]
[null,753,"-",772,78,39,2,5,39,7,8]
[null,773,"-",791,79,40,2,5,39,7,8]
[null,792,"-",811,80,40,2,5,40,7,8]
[null,812,"-",830,81,41,2,5,40,7,8]
[null,831,"-",850,82,41,2,5,41,7,8]
[null,851,"-",869,83,42,2,5,41,7,8]
[null,870,"-",888,84,42,2,5,42,7,8]
[null,889,"-",908,85,43,2,5,42,7,8]
[null,909,"-",927,86,43,2,5,43,7,8]
[null,928,"-",947,87,44,2,5,43,7,8]
[null,948,"-",966,88,44,2,5,44,7,8]
[null,967,"-",{"$f":"B86-1","v":986},89,45,2,5,44,8,9]
[null,987,"-",1005,90,45,2,5,45,8,9]
[null,1006,"-",1025,91,46,2,5,45,8,9]
[null,1026,"-",1044,92,46,2,5,46,8,9]
[null,1045,"-",1063,93,47,2,5,46,8,9]
[null,1064,"-",1083,94,47,2,5,47,8,9]
[null,1084,"-",1102,95,48,2,5,47,8,9]
[null,1103,"-",1122,96,48,2,5,48,8,9]
[null,1123,"-",1141,97,49,2,5,48,8,9]
[null,1142,"-",1161,98,49,2,5,49,8,9]
[null,1162,"-",1180,99,50,2,5,49,8,9]
[null,1181,"-",1199,100,50,2,5,50,8,9]
[null,1200,"-",1200,100,50,3,6,50,9,10]
[null,1201,"-",1233,101,51,3,6,50,9,10]
[null,1234,"-",1266,102,51,3,6,51,9,10]
[null,1267,"-",1300,103,52,3,6,51,9,10]
[null,1301,"-",1333,104,52,3,6,52,9,10]
[null,1334,"-",1366,105,53,3,6,52,9,10]
[null,1367,"-",1400,106,53,3,6,53,9,10]
[null,1401,"-",1433,107,54,3,6,53,9,10]
[null,1434,"-",1466,108,54,3,6,54,9,10]
[null,1467,"-",1500,109,55,3,6,54,9,10]
[null,1501,"-",1533,110,55,3,6,55,9,10]
[null,1534,"-",1566,111,56,3,6,55,9,10]
[null,1567,"-",1600,112,56,3,6,56,9,10]
[null,1601,"-",1633,113,57,3,6,56,9,10]
[null,1634,"-",1666,114,57,3,6,57,9,10]
[null,1667,"-",1700,115,58,3,6,57,9,10]
[null,1701,"-",1733,116,58,3,6,58,9,10]
[null,1734,"-",1766,117,59,3,6,58,9,10]
[null,1767,"-",1800,118,59,3,6,59,9,10]
[null,1801,"-",1833,119,60,3,6,59,9,10]
[null,1834,"-",1866,120,60,3,6,60,9,10]
[null,1867,"-",1900,121,61,3,7,60,10,11]
[null,1901,"-",1933,122,61,3,7,61,10,11]
[null,1934,"-",1966,123,62,3,7,61,10,11]
[null,1967,"-",2000,124,62,3,7,62,10,11]
[null,2001,"-",2033,125,63,3,7,62,10,11]
[null,2034,"-",2066,126,63,3,7,63,10,11]
[null,2067,"-",{"$f":"B125-1","v":2100},127,64,3,7,63,10,11]
[null,2101,"-",2133,128,64,3,7,64,10,11]
[null,2134,"-",2166,129,65,3,7,64,10,11]
[null,2167,"-",2199,130,65,3,7,65,10,11]
[null,2200,"-",2200,130,65,4,7,65,10,11]
[null,2201,"-",2233,131,66,4,7,65,10,11]
[null,2234,"-",2266,132,66,4,7,66,10,11]
[null,2267,"-",2300,133,67,4,7,66,10,11]
[null,2301,"-",2333,134,67,4,7,67,10,11]
[null,2334,"-",2366,135,68,4,7,67,10,11]
[null,2367,"-",2400,136,68,4,7,68,10,11]
[null,2401,"-",2433,137,69,4,7,{"$f":"E135-F135","v":68},10,11]
[null,2434,"-",2466,138,69,4,7,69,10,11]
[null,2467,"-",2500,139,70,4,7,69,10,11]
[null,2501,"-",2533,140,70,4,7,70,10,11]
[null,2534,"-",2566,141,71,4,8,70,11,12]
[null,2567,"-",2600,142,71,4,8,71,11,12]
[null,2601,"-",2633,143,72,4,8,71,11,12]
[null,2634,"-",2666,144,72,4,8,72,11,12]
[null,2667,"-",2700,145,73,4,8,72,11,12]
[null,2701,"-",2733,146,73,4,8,73,11,12]
[null,2734,"-",2766,147,74,4,8,73,11,12]
[null,2767,"-",2800,148,74,4,8,74,11,12]
[null,2801,"-",2833,149,75,4,8,74,11,12]
[null,2834,"-",2866,150,75,4,8,75,11,12]
[null,2867,"-",{"$f":"B150-1","v":2900},151,76,4,8,75,11,12]
[null,2901,"-",2933,152,76,4,8,76,11,12]
[null,2934,"-",2966,153,77,4,8,76,11,12]
[null,2967,"-",3000,154,77,4,8,77,11,12]
[null,3001,"-",3033,155,78,4,8,77,11,12]
[null,3034,"-",3066,156,78,4,8,78,11,12]
[null,3067,"-",3100,157,79,4,8,78,11,12]
[null,3101,"-",3133,158,79,4,8,79,11,12]
[null,3134,"-",3166,159,80,4,8,79,11,12]
[null,3167,"-",3199,160,80,4,8,80,11,12]
[null,3200,"-",3200,160,80,5,9,80,12,13]

{"sheet":"Metode","index":2,"n_rows":82,"n_cols":2,"rows_kept":82,"cut":false,"hidden":false,"merged":[[81,1,82,12],[74,1,78,12],[80,1,80,12],[50,1,53,12],[55,1,56,12],[60,1,67,12],[69,1,72,12]]}
[]
[null,"Beskrivelse af metoden i værktøjet"]
[null,"Anbefalingen af maks antal år til næste stikprøve/udskiftning laves ud fra, hvordan målernes afvigelser fordeler sig i 10 intervaller "]
[null,"for hvert af de tre målepunkter, som er angivet i vejlendingen CLM.VARME.01 i \"Skema 1: Husholdninger, Komplet måler\" (indsat til højre)."]
[null,"Metoden er grundlæggende den samme som beskrevet i vejledningen CLM.VARME.01, men med 9 kontrolgrænser i stedet for 3."]
[null,"Første interval går fra 0 % afvigelse til verifikationsfejlgrænsen, som f.eks. for målepunkt 1 er til og med 6,3 %. "]
[null,"Området mellem verifikationsfejlgrænsen og brugstolerancen (12,6 % for målepunkt 1) er opdelt i 8 lige store intervaller."]
[null,"For hvert interval afvigelsen stiger fra verifikationsfejlgrænsen mod brugstolerancen, falder anbefalingen til maks. antal år."]
[null,"Afvigelserne kan både være positive og negative, men i vurderingen behandles de som absolutte værdier, hvorfor der ikke er "]
[null,"intervaller for negative afvigelser."]
[]
[]
[]
[]
[]
[]
[]
[]
[]
[]
[]
[]
[]
[]
[]
[]
[]
[]
[]
[]
[]
[]
[]
[]
[]
[]
[]
[]
[]
[]
[null,"Som det fremgår af intervalindelingerne for de tre målepunkter, dækker hvert interval-nummer over tre forskellige intervaller "]
[null,"nemlig ét for hvert af de tre målepunkter. Ved en afvigelse på 9,1 % i målepunkt 1, ender måleren i interval 5. En afvigelse på"]
[null,"9,1 % i målepunkt 2 betyder derimod, at måleren ender i interval 2. "]
[null,"Vurderingen af stikprøvet laves ud fra summen af målere, der ender i hvert interval-nummer på tværs af de tre målepunkter."]
[null,"Hver måler tæller altså med i vurderingen med den afvigelse, som giver det laveste interval-nummer af de tre målepunkter. "]
[null,"Hver måler tæller kun med én gang. Hvis måleren f.eks. ender i interval nummer 4 i alle tre målepunkter, tæller måleren"]
[null,"kun som én måler i interval 4 og ikke som tre."]
[]
[null,"Vurderingen af, hvilket interval hele målerpartiet ender i, laves ud fra et godkendelsestal, der afhænger af partiets størrelse."]
[]
[null,"Godkendelsestallet er udtryk for en statistisk vurdering af partiet som helhed ud fra stikprøven og er fastsat efter metoden i standarden DS/ISO 2859-1+Cor. 1: 2001 ”Metoder for stikprøveinspektion ved alternativ variation – Del 1\". Der er anvendt normal inspektion, inspektionsniveau II og AQL = 4 %. Godkendelsestallet angiver det maksimale antal målere, der ved stikprøvekontrollen må overskride nøjagtighedskravene. "]
[]
[]
[]
[]
[null,"Partiet ender i intervallet med laveste interval-nummer, hvor der er mere end \"godkendelsestallet\" målere."]
[]
[null,"Hvis mere end \"godkendelsestallet\" målere overskrider brugstolerancen (ender i interval nummer 0), skal partiet udskiftes "]
[null,"hurtigst muligt."]
[]
[null,"1. stikprøve\nVed anvendelse af dobbelt stikprøveplan godkendes partiet efter 1. stikprøve, hvis antallet af målere der overskrider kontrolgrænsen højst er godkendelsestallet for 1. stikprøve.\nPartiet kan ikke godkendes efter 1. stikprøve, hvis antallet af målere der overskrider kontrolgrænsen mindst er forkastelsestallet for 1. stikprøve, dvs. 2. stikprøve undersøges ikke og partiet nedtages.\nEr antallet af målere der overskrider kontrolgrænsen ved 1. stikprøve større end godkendelsestallet for 1. stikprøve, men mindre end forkastelsestallet for 1. stikprøve, skal 2. stikprøve udtages, før det kan afgøres, om partiet kan godkendes i det pågældende interval.\n"]
[]
[]
[]
[]
[]
[]
[]
[]
[null,"Denne vurdering laves for hvert af intervallerne, og man kan derfor efter 1. stikprøve vælge at forlænge partiet ud fra retultatet af 1. stikprøve alene. Hvis man vælger at udtage 2. stikprøve er det muligt, at partiet vil kunne få en længere forlængelse, hvis der er nogle højere intervaller, hvor godkendelsestallet er overskredet, men forkastelsestallet ikke er. Der er dog også mulighed for, at partiet ender med en lavere forlængelse end efter 1. stikprøve, hvis 2. stikprøve er dårlig."]
[]
[]
[]
[]
[null,"2. stikprøve\nPartiet godkendes, hvis det samlede antal målere der overskrider kontrolgrænsen for 1. og 2. stikprøve højst er godkendelsestallet for 2. stikprøve.\nPartiet kan ikke godkendes, hvis det samlede antal målere, der overskrider kontrolgrænsen for 1. og 2. stikprøve, mindst er forkastelsestallet for 2. stikprøve."]
[]
[]
[]
[]
[]
[null,"Yderligere metodeforklaring"]
[null,"Yderligere forklaring og eksempel på anvendelse af metoden kan findes i den måletekniske vejledning CLM.VARME.01 afsnit 4.2. Bemærk dog at eksemplet i CLM.VARME.01 kun anvender 3 kontrolgrænser, hvor dette regneark anvender 9."]

{"sheet":"Beregninger","index":3,"n_rows":163,"n_cols":55,"rows_kept":163,"cut":false,"hidden":false,"merged":[[1,3,1,5],[2,3,2,5],[3,3,3,5],[4,3,4,5],[8,6,9,6],[5,2,5,4],[6,6,6,8],[2,9,4,14],[6,9,6,11],[7,2,7,4],[8,2,8,4],[8,7,8,8],[8,10,8,11]]}
[]
[null,null,null,"Partistørrelse",null,null,{"$f":"Stikprøve!D39","v":500}]
[null,null,null,"1. stikprøve",null,null,{"$f":"VLOOKUP(\"Ja\",A11:L163,7,FALSE)","v":32},"2. stikprøve",{"$f":"VLOOKUP(\"Ja\",A11:L163,10,FALSE)","v":32},"Bemærk: Hvis antallet af kolonner eller rækker i arket ændres, skal nogle af formlerne i række 28 og 120-130 tilpasses manuelt, da der anvendes faste række- og kolonnenumre i formlerne."]
[null,null,null,"->Godkendelsestal",null,null,{"$f":"VLOOKUP(\"Ja\",A11:L163,8,FALSE)","v":2},"->Godkendelsestal",{"$f":"VLOOKUP(\"Ja\",A11:L163,11,FALSE)","v":6}]
[null,null,null,"->Forkastelsestal",null,null,{"$f":"VLOOKUP(\"Ja\",A11:L163,9,FALSE)","v":5},"->Forkastelsestal",{"$f":"VLOOKUP(\"Ja\",A11:L163,12,FALSE)","v":7}]
[]
[null,null,null,null,null,null,"1. stikprøve (udføres altid)",null,null,"2. stikprøve (udføres hvis 1. stikprøveresultat ikke er entydigt)"]
[null,null,"Partistørrelse",null,null,null,"Stikprøve-størrelse","Godkendelsestal ","Forkastelsestal","Stikprøve-størrelse","Godkendelsestal ","Forkastelsestal"]
[null,null,"Det samlede antal målere i partiet",null,null,"Stikprøvestørrelse 1.+2.","Antal målere heraf der skal stikprøvekon-trolleres i 1. stikprøve","Antal målere i \n1. stikprøve \nsom overskrider\nkontrolgrænserne",null,"Antal målere heraf der skal stikprøve-kontrolleres i 2. stikprøve","Antal målere i \n1.+2. stikprøve \nsom overskrider\nkontrolgrænserne"]
[null,null,null,null,null,null,null,"højst","mindst",null,"højst","mindst"]
[{"$f":"IF(AND($G$2>(C11-1),$G$2<(E11+1)),\"Ja\",\"Nej\")","v":"Nej"},null,{"$f":"C12-1","v":90},"-",90,16,8,0,2,{"$f":"F11-G11","v":8},1,2]
[{"$f":"IF(AND($G$2>(C12-1),$G$2<(E12+1)),\"Ja\",\"Nej\")","v":"Nej"},null,91,"-",{"$f":"C13-1","v":96},17,9,0,2,8,1,2]
["Nej",null,97,"-",102,18,9,0,2,9,1,2]
["Nej",null,103,"-",108,19,10,0,2,9,1,2]
["Nej",null,109,"-",114,20,10,0,2,10,1,2]
["Nej",null,115,"-",119,21,11,0,2,10,1,2,null,null,"Intervalgrænser for de tre målepunkter (nedre grænse for intervallet/antal år), [afvigelser i %]"]
["Nej",null,120,"-",120,21,11,0,2,10,1,2]
["Nej",null,121,"-",126,22,11,0,2,11,1,2,null,null,"Max. Antal År",9,8,7,6,5,4,3,2,1,0]
["Nej",null,127,"-",132,23,12,0,2,11,1,2,null,null,"Målepunkt 1",null,6.3,{"$f":"Q19+6.3/8","v":7.0874999999999995},{"$f":"R19+6.3/8","v":7.8749999999999991},{"$f":"S19+6.3/8","v":8.6624999999999996},9.4499999999999993,10.237499999999999,11.024999999999999,11.812499999999998,12.599999999999998]
["Nej",null,133,"-",138,24,12,0,2,12,1,2,null,null,"Målepunkt 2",null,5,{"$f":"Q20+(5/8)","v":5.625},{"$f":"R20+(5/8)","v":6.25},6.875,7.5,8.125,8.75,{"$f":"W20+(5/8)","v":9.375},10]
["Nej",null,139,"-",144,25,13,0,2,12,1,2,null,null,"Målepunkt 3",null,5.2,{"$f":"Q21+5.2/8","v":5.8500000000000005},{"$f":"R21+5.2/8","v":6.5000000000000009},7.1500000000000012,7.8000000000000016,8.4500000000000011,9.1000000000000014,9.7500000000000018,10.400000000000002]
["Nej",null,145,"-",{"$f":"C23-1","v":149},26,13,0,2,13,1,2]
["Nej",null,150,"-",150,26,13,0,3,13,3,4,null,null,null,null,null,null,null,null,null,null,null,null,null,null,null,null,null,null,null,null,null,null,null,null,null,null,null,null,null,null,null,null,"Afvigere i interval til graf:",{"$f":"(G3+I3)-SUM(AU23:BC23)","v":64},{"$f":"AU27-AV27","v":0},0,0,0,0,0,0,0,{"$f":"BC27","v":0}]
["Nej",null,151,"-",{"$f":"C25-1","v":159},27,14,0,3,13,3,4,null,null,null,null,null,null,null,null,null,null,null,"Afvigere i interval til graf:",{"$f":"G3-SUM(Z24:AH24)","v":32},{"$f":"Z28-AA28","v":0},{"$f":"AA28-AB28","v":0},0,0,0,{"$f":"AE28-AF28","v":0},0,0,0,null,null,null,null,null,null,null,null,null,null,"2. stikprøve: Optælling af målere i de forskellige intervaller ift. forlængelse (sum af de tre målepunkter)"]
["Nej",null,160,"-",{"$f":"C26-1","v":168},28,14,0,3,14,3,4,null,null,null,null,null,null,null,null,null,null,null,"1. stikprøve: Optælling af målere i de forskellige intervaller ift. forlængelse (sum af de tre målepunkter)",null,null,null,null,null,null,null,null,null,null,null,null,null,null,null,null,null,null,null,null,"Maks antal år:",{"$f":"IF(MIN(AT26:BC26)>AE26,AE26,MIN(AT26:BC26))","v":9},"(kan være begrænset af forkastede intervaller i 1. stikprøve)",null,null,null,null,null,"F=","Forkastet"]
["Nej",null,169,"-",177,29,15,0,3,14,3,4,null,null,null,null,null,null,null,null,null,null,null,"Maks antal år:",{"$f":"MIN(Y27:AH27)","v":9},null,"Maks mulige antal år efter 2. stikprøve: ",null,null,null,{"$f":"MAX(Y27:AH27)","v":9},"F=","Forkastet",null,null,null,null,null,null,null,null,null,null,null,"År iht. afvigere:",{"$f":"IF(AU28>$I$5-1,\"F\",9)","v":9},{"$f":"IF(AV27>$I$5-1,\"F\",IF(AU27>$I$4,AU29,\"\"))","v":""},"","","","","","","",{"$f":"IF(BC27>$I$4,BC29,\"\")","v":""}]
["Nej",null,178,"-",187,30,15,0,3,15,3,4,null,null,null,null,null,null,null,null,null,null,null,"År iht. afvigere:",{"$f":"IF(Z28>$G$5-1,\"F\",9)","v":9},{"$f":"IF(AA28>$G$5-1,\"F\",IF(Z28>$G$4,Z29,\"\"))","v":""},"","","","","","","",{"$f":"IF(AH28>$G$4,AH29,\"\")","v":""},null,null,null,null,null,null,null,null,null,null,"1+2 stikprøve: Antal over grænse:",{"$f":"Y28+AT28","v":64},{"$f":"Z28+AU28","v":0},0,0,0,0,0,0,0,0]
["Nej",null,188,"-",196,31,16,0,3,15,3,4,null,null,"1. stikprøve: Absolutte værdier af indtastede afvigelser",null,null,null,null,null,null,null,null,"Antal over grænse:",{"$f":"G3","v":32},{"$f":"SUM(Z$30:INDIRECT(ADDRESS(29+$G$3,26,1,,\"Beregninger\")))","v":0},{"$f":"SUM(AA$30:INDIRECT(ADDRESS(29+$G$3,27,1,,\"Beregninger\")))","v":0},{"$f":"SUM(AB$30:INDIRECT(ADDRESS(29+$G$3,28,1,,\"Beregninger\")))","v":0},{"$f":"SUM(AC$30:INDIRECT(ADDRESS(29+$G$3,29,1,,\"Beregninger\")))","v":0},{"$f":"SUM(AD$30:INDIRECT(ADDRESS(29+$G$3,30,1,,\"Beregninger\")))","v":0},{"$f":"SUM(AE$30:INDIRECT(ADDRESS(29+$G$3,31,1,,\"Beregninger\")))","v":0},{"$f":"SUM(AF$30:INDIRECT(ADDRESS(29+$G$3,32,1,,\"Beregninger\")))","v":0},{"$f":"SUM(AG$30:INDIRECT(ADDRESS(29+$G$3,33,1,,\"Beregninger\")))","v":0},{"$f":"SUM(AH$30:INDIRECT(ADDRESS(29+$G$3,34,1,,\"Beregninger\")))","v":0},null,"2. stikprøve: Absolutte værdier af indtastede afvigelser",null,null,null,null,null,null,null,null,"Antal over grænse 2. stikprøve:",{"$f":"I3","v":32},{"$f":"SUM(AU$30:INDIRECT(ADDRESS(29+$I$3,47,1,,\"Beregninger\")))","v":0},{"$f":"SUM(AV$30:INDIRECT(ADDRESS(29+$I$3,48,1,,\"Beregninger\")))","v":0},{"$f":"SUM(AW$30:INDIRECT(ADDRESS(29+$I$3,49,1,,\"Beregninger\")))","v":0},{"$f":"SUM(AX$30:INDIRECT(ADDRESS(29+$I$3,50,1,,\"Beregninger\")))","v":0},{"$f":"SUM(AY$30:INDIRECT(ADDRESS(29+$I$3,51,1,,\"Beregninger\")))","v":0},{"$f":"SUM(AZ$30:INDIRECT(ADDRESS(29+$I$3,52,1,,\"Beregninger\")))","v":0},{"$f":"SUM(BA$30:INDIRECT(ADDRESS(29+$I$3,53,1,,\"Beregninger\")))","v":0},{"$f":"SUM(BB$30:INDIRECT(ADDRESS(29+$I$3,54,1,,\"Beregninger\")))","v":0},{"$f":"SUM(BC$30:INDIRECT(ADDRESS(29+$I$3,55,1,,\"Beregninger\")))","v":0}]
["Nej",null,197,"-",205,32,16,0,3,16,3,4,null,null,"Afvigelse punkt 1 [%]:",null,null,"Afvigelse punkt 2 [%]:",null,null,"Afvigelse punkt 3 [%]:",null,null,"Maks. mulige år:",9,8,7,6,5,4,3,2,1,0,null,"Afvigelse punkt 1 [%]:",null,null,"Afvigelse punkt 2 [%]:",null,null,"Afvigelse punkt 3 [%]:",null,null,"Maks. mulige år:",9,8,7,6,5,4,3,2,1,0]
["Nej",null,206,"-",215,33,17,0,3,16,3,4,null,null,{"$f":"IF(ISBLANK(Stikprøve!D49)=TRUE,0,ABS(Stikprøve!D49))","v":0},null,null,{"$f":"IF(ISBLANK(Stikprøve!E49)=TRUE,0,ABS(Stikprøve!E49))","v":0},null,null,{"$f":"IF(ISBLANK(Stikprøve!F49)=TRUE,0,ABS(Stikprøve!F49))","v":0},null,null,null,null,{"$f":"IF($O30>Q$19,1,IF($R30>Q$20,1,IF($U30>Q$21,1,\"\")))","v":""},{"$f":"IF($O30>R$19,1,IF($R30>R$20,1,IF($U30>R$21,1,\"\")))","v":""},"","","","","","",{"$f":"IF($O30>Y$19,1,IF($R30>Y$20,1,IF($U30>Y$21,1,\"\")))","v":""},null,{"$f":"IF(ISBLANK(Stikprøve!L49)=TRUE,0,ABS(Stikprøve!L49))","v":0},null,null,{"$f":"IF(ISBLANK(Stikprøve!M49)=TRUE,0,ABS(Stikprøve!M49))","v":0},null,null,{"$f":"IF(ISBLANK(Stikprøve!N49)=TRUE,0,ABS(Stikprøve!N49))","v":0},null,null,null,null,{"$f":"IF($AJ30>Q$19,1,IF($AM30>Q$20,1,IF($AP30>Q$21,1,\"\")))","v":""},{"$f":"IF($AJ30>R$19,1,IF($AM30>R$20,1,IF($AP30>R$21,1,\"\")))","v":""},{"$f":"IF($AJ30>S$19,1,IF($AM30>S$20,1,IF($AP30>S$21,1,\"\")))","v":""},"","","","","",{"$f":"IF($AJ30>Y$19,1,IF($AM30>Y$20,1,IF($AP30>Y$21,1,\"\")))","v":""}]
["Nej",null,216,"-",224,34,17,0,3,17,3,4,null,null,{"$f":"IF(ISBLANK(Stikprøve!D50)=TRUE,0,ABS(Stikprøve!D50))","v":0},null,null,{"$f":"IF(ISBLANK(Stikprøve!E50)=TRUE,0,ABS(Stikprøve!E50))","v":0},null,null,{"$f":"IF(ISBLANK(Stikprøve!F50)=TRUE,0,ABS(Stikprøve!F50))","v":0},null,null,null,null,{"$f":"IF($O31>Q$19,1,IF($R31>Q$20,1,IF($U31>Q$21,1,\"\")))","v":""},"","","","","","","",{"$f":"IF($O31>Y$19,1,IF($R31>Y$20,1,IF($U31>Y$21,1,\"\")))","v":""},null,{"$f":"IF(ISBLANK(Stikprøve!L50)=TRUE,0,ABS(Stikprøve!L50))","v":0},null,null,{"$f":"IF(ISBLANK(Stikprøve!M50)=TRUE,0,ABS(Stikprøve!M50))","v":0},null,null,{"$f":"IF(ISBLANK(Stikprøve!N50)=TRUE,0,ABS(Stikprøve!N50))","v":0},null,null,null,null,{"$f":"IF($AJ31>Q$19,1,IF($AM31>Q$20,1,IF($AP31>Q$21,1,\"\")))","v":""},{"$f":"IF($AJ31>R$19,1,IF($AM31>R$20,1,IF($AP31>R$21,1,\"\")))","v":""},"","","","","","",{"$f":"IF($AJ31>Y$19,1,IF($AM31>Y$20,1,IF($AP31>Y$21,1,\"\")))","v":""}]
["Nej",null,225,"-",233,35,18,0,3,17,3,4,null,null,{"$f":"IF(ISBLANK(Stikprøve!D51)=TRUE,0,ABS(Stikprøve!D51))","v":0},null,null,{"$f":"IF(ISBLANK(Stikprøve!E51)=TRUE,0,ABS(Stikprøve!E51))","v":0},null,null,{"$f":"IF(ISBLANK(Stikprøve!F51)=TRUE,0,ABS(Stikprøve!F51))","v":0},null,null,null,null,"","","","","","","","","",null,{"$f":"IF(ISBLANK(Stikprøve!L51)=TRUE,0,ABS(Stikprøve!L51))","v":0},null,null,{"$f":"IF(ISBLANK(Stikprøve!M51)=TRUE,0,ABS(Stikprøve!M51))","v":0},null,null,{"$f":"IF(ISBLANK(Stikprøve!N51)=TRUE,0,ABS(Stikprøve!N51))","v":0},null,null,null,null,"","","","","","","","",""]
["Nej",null,234,"-",242,36,18,0,3,18,3,4,null,null,{"$f":"IF(ISBLANK(Stikprøve!D52)=TRUE,0,ABS(Stikprøve!D52))","v":0},null,null,{"$f":"IF(ISBLANK(Stikprøve!E52)=TRUE,0,ABS(Stikprøve!E52))","v":0},null,null,{"$f":"IF(ISBLANK(Stikprøve!F52)=TRUE,0,ABS(Stikprøve!F52))","v":0},null,null,null,null,"","","","","","","","","",null,{"$f":"IF(ISBLANK(Stikprøve!L52)=TRUE,0,ABS(Stikprøve!L52))","v":0},null,null,{"$f":"IF(ISBLANK(Stikprøve!M52)=TRUE,0,ABS(Stikprøve!M52))","v":0},null,null,{"$f":"IF(ISBLANK(Stikprøve!N52)=TRUE,0,ABS(Stikprøve!N52))","v":0},null,null,null,null,"",{"$f":"IF($AJ33>R$19,1,IF($AM33>R$20,1,IF($AP33>R$21,1,\"\")))","v":""},"","","","","","",""]
["Nej",null,243,"-",252,37,19,0,3,18,3,4,null,null,{"$f":"IF(ISBLANK(Stikprøve!D53)=TRUE,0,ABS(Stikprøve!D53))","v":0},null,null,{"$f":"IF(ISBLANK(Stikprøve!E53)=TRUE,0,ABS(Stikprøve!E53))","v":0},null,null,{"$f":"IF(ISBLANK(Stikprøve!F53)=TRUE,0,ABS(Stikprøve!F53))","v":0},null,null,null,null,"","",{"$f":"IF($O34>S$19,1,IF($R34>S$20,1,IF($U34>S$21,1,\"\")))","v":""},"","","","","","",null,{"$f":"IF(ISBLANK(Stikprøve!L53)=TRUE,0,ABS(Stikprøve!L53))","v":0},null,null,{"$f":"IF(ISBLANK(Stikprøve!M53)=TRUE,0,ABS(Stikprøve!M53))","v":0},null,null,{"$f":"IF(ISBLANK(Stikprøve!N53)=TRUE,0,ABS(Stikprøve!N53))","v":0},null,null,null,null,"","","","","","","","",""]
["Nej",null,253,"-",261,38,19,0,3,19,3,4,null,null,{"$f":"IF(ISBLANK(Stikprøve!D54)=TRUE,0,ABS(Stikprøve!D54))","v":0},null,null,{"$f":"IF(ISBLANK(Stikprøve!E54)=TRUE,0,ABS(Stikprøve!E54))","v":0},null,null,{"$f":"IF(ISBLANK(Stikprøve!F54)=TRUE,0,ABS(Stikprøve!F54))","v":0},null,null,null,null,"","","","","","","","","",null,{"$f":"IF(ISBLANK(Stikprøve!L54)=TRUE,0,ABS(Stikprøve!L54))","v":0},null,null,{"$f":"IF(ISBLANK(Stikprøve!M54)=TRUE,0,ABS(Stikprøve!M54))","v":0},null,null,{"$f":"IF(ISBLANK(Stikprøve!N54)=TRUE,0,ABS(Stikprøve!N54))","v":0},null,null,null,null,"","","","","","","","",""]
["Nej",null,262,"-",270,39,20,0,3,19,3,4,null,null,{"$f":"IF(ISBLANK(Stikprøve!D55)=TRUE,0,ABS(Stikprøve!D55))","v":0},null,null,{"$f":"IF(ISBLANK(Stikprøve!E55)=TRUE,0,ABS(Stikprøve!E55))","v":0},null,null,{"$f":"IF(ISBLANK(Stikprøve!F55)=TRUE,0,ABS(Stikprøve!F55))","v":0},null,null,null,null,"","","","","","","","","",null,{"$f":"IF(ISBLANK(Stikprøve!L55)=TRUE,0,ABS(Stikprøve!L55))","v":0},null,null,{"$f":"IF(ISBLANK(Stikprøve!M55)=TRUE,0,ABS(Stikprøve!M55))","v":0},null,null,{"$f":"IF(ISBLANK(Stikprøve!N55)=TRUE,0,ABS(Stikprøve!N55))","v":0},null,null,null,null,"","","","","","","","",""]
["Nej",null,271,"-",279,40,20,0,3,20,3,4,null,null,{"$f":"IF(ISBLANK(Stikprøve!D56)=TRUE,0,ABS(Stikprøve!D56))","v":0},null,null,{"$f":"IF(ISBLANK(Stikprøve!E56)=TRUE,0,ABS(Stikprøve!E56))","v":0},null,null,{"$f":"IF(ISBLANK(Stikprøve!F56)=TRUE,0,ABS(Stikprøve!F56))","v":0},null,null,null,null,"","","","","","","","","",null,{"$f":"IF(ISBLANK(Stikprøve!L56)=TRUE,0,ABS(Stikprøve!L56))","v":0},null,null,{"$f":"IF(ISBLANK(Stikprøve!M56)=TRUE,0,ABS(Stikprøve!M56))","v":0},null,null,{"$f":"IF(ISBLANK(Stikprøve!N56)=TRUE,0,ABS(Stikprøve!N56))","v":0},null,null,null,null,"","","","","","","","",""]
["Nej",null,280,"-",280,40,20,1,3,20,4,5,null,null,{"$f":"IF(ISBLANK(Stikprøve!D57)=TRUE,0,ABS(Stikprøve!D57))","v":0},null,null,{"$f":"IF(ISBLANK(Stikprøve!E57)=TRUE,0,ABS(Stikprøve!E57))","v":0},null,null,{"$f":"IF(ISBLANK(Stikprøve!F57)=TRUE,0,ABS(Stikprøve!F57))","v":0},null,null,null,null,{"$f":"IF($O38>Q$19,1,IF($R38>Q$20,1,IF($U38>Q$21,1,\"\")))","v":""},"","","","","","","","",null,{"$f":"IF(ISBLANK(Stikprøve!L57)=TRUE,0,ABS(Stikprøve!L57))","v":0},null,null,{"$f":"IF(ISBLANK(Stikprøve!M57)=TRUE,0,ABS(Stikprøve!M57))","v":0},null,null,{"$f":"IF(ISBLANK(Stikprøve!N57)=TRUE,0,ABS(Stikprøve!N57))","v":0},null,null,null,null,"","","","","","","","",""]
["Nej",null,281,"-",289,41,21,1,3,20,4,5,null,null,{"$f":"IF(ISBLANK(Stikprøve!D58)=TRUE,0,ABS(Stikprøve!D58))","v":0},null,null,{"$f":"IF(ISBLANK(Stikprøve!E58)=TRUE,0,ABS(Stikprøve!E58))","v":0},null,null,{"$f":"IF(ISBLANK(Stikprøve!F58)=TRUE,0,ABS(Stikprøve!F58))","v":0},null,null,null,null,"","","","","","","","","",null,{"$f":"IF(ISBLANK(Stikprøve!L58)=TRUE,0,ABS(Stikprøve!L58))","v":0},null,null,{"$f":"IF(ISBLANK(Stikprøve!M58)=TRUE,0,ABS(Stikprøve!M58))","v":0},null,null,{"$f":"IF(ISBLANK(Stikprøve!N58)=TRUE,0,ABS(Stikprøve!N58))","v":0},null,null,null,null,"","","","","","","","",""]
["Nej",null,290,"-",298,42,21,1,3,21,4,5,null,null,{"$f":"IF(ISBLANK(Stikprøve!D59)=TRUE,0,ABS(Stikprøve!D59))","v":0},null,null,{"$f":"IF(ISBLANK(Stikprøve!E59)=TRUE,0,ABS(Stikprøve!E59))","v":0},null,null,{"$f":"IF(ISBLANK(Stikprøve!F59)=TRUE,0,ABS(Stikprøve!F59))","v":0},null,null,null,null,"","","","","","","","","",null,{"$f":"IF(ISBLANK(Stikprøve!L59)=TRUE,0,ABS(Stikprøve!L59))","v":0},null,null,{"$f":"IF(ISBLANK(Stikprøve!M59)=TRUE,0,ABS(Stikprøve!M59))","v":0},null,null,{"$f":"IF(ISBLANK(Stikprøve!N59)=TRUE,0,ABS(Stikprøve!N59))","v":0},null,null,null,null,"","","","","","","","",""]
["Nej",null,299,"-",307,43,22,1,3,21,4,5,null,null,{"$f":"IF(ISBLANK(Stikprøve!D60)=TRUE,0,ABS(Stikprøve!D60))","v":0},null,null,{"$f":"IF(ISBLANK(Stikprøve!E60)=TRUE,0,ABS(Stikprøve!E60))","v":0},null,null,{"$f":"IF(ISBLANK(Stikprøve!F60)=TRUE,0,ABS(Stikprøve!F60))","v":0},null,null,null,null,"","","","","","","","","",null,{"$f":"IF(ISBLANK(Stikprøve!L60)=TRUE,0,ABS(Stikprøve!L60))","v":0},null,null,{"$f":"IF(ISBLANK(Stikprøve!M60)=TRUE,0,ABS(Stikprøve!M60))","v":0},null,null,{"$f":"IF(ISBLANK(Stikprøve!N60)=TRUE,0,ABS(Stikprøve!N60))","v":0},null,null,null,null,"","","","","","","","",""]
["Nej",null,308,"-",316,44,22,1,3,22,4,5,null,null,{"$f":"IF(ISBLANK(Stikprøve!D61)=TRUE,0,ABS(Stikprøve!D61))","v":0},null,null,{"$f":"IF(ISBLANK(Stikprøve!E61)=TRUE,0,ABS(Stikprøve!E61))","v":0},null,null,{"$f":"IF(ISBLANK(Stikprøve!F61)=TRUE,0,ABS(Stikprøve!F61))","v":0},null,null,null,null,"","","","","","","","","",null,{"$f":"IF(ISBLANK(Stikprøve!L61)=TRUE,0,ABS(Stikprøve!L61))","v":0},null,null,{"$f":"IF(ISBLANK(Stikprøve!M61)=TRUE,0,ABS(Stikprøve!M61))","v":0},null,null,{"$f":"IF(ISBLANK(Stikprøve!N61)=TRUE,0,ABS(Stikprøve!N61))","v":0},null,null,null,null,"","","","","","","","",""]
["Nej",null,317,"-",325,45,23,1,3,{"$f":"F43-G43","v":22},4,5,null,null,{"$f":"IF(ISBLANK(Stikprøve!D62)=TRUE,0,ABS(Stikprøve!D62))","v":0},null,null,{"$f":"IF(ISBLANK(Stikprøve!E62)=TRUE,0,ABS(Stikprøve!E62))","v":0},null,null,{"$f":"IF(ISBLANK(Stikprøve!F62)=TRUE,0,ABS(Stikprøve!F62))","v":0},null,null,null,null,"","","","","","","","","",null,{"$f":"IF(ISBLANK(Stikprøve!L62)=TRUE,0,ABS(Stikprøve!L62))","v":0},null,null,{"$f":"IF(ISBLANK(Stikprøve!M62)=TRUE,0,ABS(Stikprøve!M62))","v":0},null,null,{"$f":"IF(ISBLANK(Stikprøve!N62)=TRUE,0,ABS(Stikprøve!N62))","v":0},null,null,null,null,"","","","","","","","",""]
["Nej",null,326,"-",335,46,23,1,3,23,4,5,null,null,{"$f":"IF(ISBLANK(Stikprøve!D63)=TRUE,0,ABS(Stikprøve!D63))","v":0},null,null,{"$f":"IF(ISBLANK(Stikprøve!E63)=TRUE,0,ABS(Stikprøve!E63))","v":0},null,null,{"$f":"IF(ISBLANK(Stikprøve!F63)=TRUE,0,ABS(Stikprøve!F63))","v":0},null,null,null,null,"","","","","","","","","",null,{"$f":"IF(ISBLANK(Stikprøve!L63)=TRUE,0,ABS(Stikprøve!L63))","v":0},null,null,{"$f":"IF(ISBLANK(Stikprøve!M63)=TRUE,0,ABS(Stikprøve!M63))","v":0},null,null,{"$f":"IF(ISBLANK(Stikprøve!N63)=TRUE,0,ABS(Stikprøve!N63))","v":0},null,null,null,null,"","","","","","","","",""]
["Nej",null,336,"-",344,47,24,1,3,23,4,5,null,null,{"$f":"IF(ISBLANK(Stikprøve!D64)=TRUE,0,ABS(Stikprøve!D64))","v":0},null,null,{"$f":"IF(ISBLANK(Stikprøve!E64)=TRUE,0,ABS(Stikprøve!E64))","v":0},null,null,{"$f":"IF(ISBLANK(Stikprøve!F64)=TRUE,0,ABS(Stikprøve!F64))","v":0},null,null,null,null,"","","","","","","","","",null,{"$f":"IF(ISBLANK(Stikprøve!L64)=TRUE,0,ABS(Stikprøve!L64))","v":0},null,null,{"$f":"IF(ISBLANK(Stikprøve!M64)=TRUE,0,ABS(Stikprøve!M64))","v":0},null,null,{"$f":"IF(ISBLANK(Stikprøve!N64)=TRUE,0,ABS(Stikprøve!N64))","v":0},null,null,null,null,"","","","","","","","",""]
["Nej",null,345,"-",353,48,24,1,3,24,4,5,null,null,{"$f":"IF(ISBLANK(Stikprøve!D65)=TRUE,0,ABS(Stikprøve!D65))","v":0},null,null,{"$f":"IF(ISBLANK(Stikprøve!E65)=TRUE,0,ABS(Stikprøve!E65))","v":0},null,null,{"$f":"IF(ISBLANK(Stikprøve!F65)=TRUE,0,ABS(Stikprøve!F65))","v":0},null,null,null,null,"","","","","",{"$f":"IF($O46>V$19,1,IF($R46>V$20,1,IF($U46>V$21,1,\"\")))","v":""},"","","",null,{"$f":"IF(ISBLANK(Stikprøve!L65)=TRUE,0,ABS(Stikprøve!L65))","v":0},null,null,{"$f":"IF(ISBLANK(Stikprøve!M65)=TRUE,0,ABS(Stikprøve!M65))","v":0},null,null,{"$f":"IF(ISBLANK(Stikprøve!N65)=TRUE,0,ABS(Stikprøve!N65))","v":0},null,null,null,null,"","","","","","",{"$f":"IF($AJ46>W$19,1,IF($AM46>W$20,1,IF($AP46>W$21,1,\"\")))","v":""},"",""]
["Nej",null,354,"-",362,49,25,1,3,24,4,5,null,null,{"$f":"IF(ISBLANK(Stikprøve!D66)=TRUE,0,ABS(Stikprøve!D66))","v":0},null,null,{"$f":"IF(ISBLANK(Stikprøve!E66)=TRUE,0,ABS(Stikprøve!E66))","v":0},null,null,{"$f":"IF(ISBLANK(Stikprøve!F66)=TRUE,0,ABS(Stikprøve!F66))","v":0},null,null,null,null,"","","","","","","","","",null,{"$f":"IF(ISBLANK(Stikprøve!L66)=TRUE,0,ABS(Stikprøve!L66))","v":0},null,null,{"$f":"IF(ISBLANK(Stikprøve!M66)=TRUE,0,ABS(Stikprøve!M66))","v":0},null,null,{"$f":"IF(ISBLANK(Stikprøve!N66)=TRUE,0,ABS(Stikprøve!N66))","v":0},null,null,null,null,"","","","","","","","",""]
["Nej",null,363,"-",371,50,25,1,3,25,4,5,null,null,{"$f":"IF(ISBLANK(Stikprøve!D67)=TRUE,0,ABS(Stikprøve!D67))","v":0},null,null,{"$f":"IF(ISBLANK(Stikprøve!E67)=TRUE,0,ABS(Stikprøve!E67))","v":0},null,null,{"$f":"IF(ISBLANK(Stikprøve!F67)=TRUE,0,ABS(Stikprøve!F67))","v":0},null,null,null,null,"","","","","","","","","",null,{"$f":"IF(ISBLANK(Stikprøve!L67)=TRUE,0,ABS(Stikprøve!L67))","v":0},null,null,{"$f":"IF(ISBLANK(Stikprøve!M67)=TRUE,0,ABS(Stikprøve!M67))","v":0},null,null,{"$f":"IF(ISBLANK(Stikprøve!N67)=TRUE,0,ABS(Stikprøve!N67))","v":0},null,null,null,null,"","","","","","","","",""]
["Nej",null,372,"-",380,51,26,1,3,25,4,5,null,null,{"$f":"IF(ISBLANK(Stikprøve!D68)=TRUE,0,ABS(Stikprøve!D68))","v":0},null,null,{"$f":"IF(ISBLANK(Stikprøve!E68)=TRUE,0,ABS(Stikprøve!E68))","v":0},null,null,{"$f":"IF(ISBLANK(Stikprøve!F68)=TRUE,0,ABS(Stikprøve!F68))","v":0},null,null,null,null,"","","","","","","","","",null,{"$f":"IF(ISBLANK(Stikprøve!L68)=TRUE,0,ABS(Stikprøve!L68))","v":0},null,null,{"$f":"IF(ISBLANK(Stikprøve!M68)=TRUE,0,ABS(Stikprøve!M68))","v":0},null,null,{"$f":"IF(ISBLANK(Stikprøve!N68)=TRUE,0,ABS(Stikprøve!N68))","v":0},null,null,null,null,"","","","","","","","",""]
["Nej",null,381,"-",389,52,26,1,3,26,4,5,null,null,{"$f":"IF(ISBLANK(Stikprøve!D69)=TRUE,0,ABS(Stikprøve!D69))","v":0},null,null,{"$f":"IF(ISBLANK(Stikprøve!E69)=TRUE,0,ABS(Stikprøve!E69))","v":0},null,null,{"$f":"IF(ISBLANK(Stikprøve!F69)=TRUE,0,ABS(Stikprøve!F69))","v":0},null,null,null,null,"","","","","","","","","",null,{"$f":"IF(ISBLANK(Stikprøve!L69)=TRUE,0,ABS(Stikprøve!L69))","v":0},null,null,{"$f":"IF(ISBLANK(Stikprøve!M69)=TRUE,0,ABS(Stikprøve!M69))","v":0},null,null,{"$f":"IF(ISBLANK(Stikprøve!N69)=TRUE,0,ABS(Stikprøve!N69))","v":0},null,null,null,null,"","","","","","","","",""]
["Nej",null,390,"-",390,52,26,1,4,26,5,6,null,null,{"$f":"IF(ISBLANK(Stikprøve!D70)=TRUE,0,ABS(Stikprøve!D70))","v":0},null,null,{"$f":"IF(ISBLANK(Stikprøve!E70)=TRUE,0,ABS(Stikprøve!E70))","v":0},null,null,{"$f":"IF(ISBLANK(Stikprøve!F70)=TRUE,0,ABS(Stikprøve!F70))","v":0},null,null,null,null,"","","","","","","","","",null,{"$f":"IF(ISBLANK(Stikprøve!L70)=TRUE,0,ABS(Stikprøve!L70))","v":0},null,null,{"$f":"IF(ISBLANK(Stikprøve!M70)=TRUE,0,ABS(Stikprøve!M70))","v":0},null,null,{"$f":"IF(ISBLANK(Stikprøve!N70)=TRUE,0,ABS(Stikprøve!N70))","v":0},null,null,null,null,"","","","","","","","",""]
["Nej",null,391,"-",399,53,27,1,4,26,5,6,null,null,{"$f":"IF(ISBLANK(Stikprøve!D71)=TRUE,0,ABS(Stikprøve!D71))","v":0},null,null,{"$f":"IF(ISBLANK(Stikprøve!E71)=TRUE,0,ABS(Stikprøve!E71))","v":0},null,null,{"$f":"IF(ISBLANK(Stikprøve!F71)=TRUE,0,ABS(Stikprøve!F71))","v":0},null,null,null,null,"","","","","","","","","",null,{"$f":"IF(ISBLANK(Stikprøve!L71)=TRUE,0,ABS(Stikprøve!L71))","v":0},null,null,{"$f":"IF(ISBLANK(Stikprøve!M71)=TRUE,0,ABS(Stikprøve!M71))","v":0},null,null,{"$f":"IF(ISBLANK(Stikprøve!N71)=TRUE,0,ABS(Stikprøve!N71))","v":0},null,null,null,null,"","","","","","","","",""]
["Nej",null,400,"-",408,54,27,1,4,27,5,6,null,null,{"$f":"IF(ISBLANK(Stikprøve!D72)=TRUE,0,ABS(Stikprøve!D72))","v":0},null,null,{"$f":"IF(ISBLANK(Stikprøve!E72)=TRUE,0,ABS(Stikprøve!E72))","v":0},null,null,{"$f":"IF(ISBLANK(Stikprøve!F72)=TRUE,0,ABS(Stikprøve!F72))","v":0},null,null,null,null,"","","","","","","","","",null,{"$f":"IF(ISBLANK(Stikprøve!L72)=TRUE,0,ABS(Stikprøve!L72))","v":0},null,null,{"$f":"IF(ISBLANK(Stikprøve!M72)=TRUE,0,ABS(Stikprøve!M72))","v":0},null,null,{"$f":"IF(ISBLANK(Stikprøve!N72)=TRUE,0,ABS(Stikprøve!N72))","v":0},null,null,null,null,"","","","","","","","",""]
["Nej",null,409,"-",417,55,28,1,4,27,5,6,null,null,{"$f":"IF(ISBLANK(Stikprøve!D73)=TRUE,0,ABS(Stikprøve!D73))","v":0},null,null,{"$f":"IF(ISBLANK(Stikprøve!E73)=TRUE,0,ABS(Stikprøve!E73))","v":0},null,null,{"$f":"IF(ISBLANK(Stikprøve!F73)=TRUE,0,ABS(Stikprøve!F73))","v":0},null,null,null,null,"","","","","","","","","",null,{"$f":"IF(ISBLANK(Stikprøve!L73)=TRUE,0,ABS(Stikprøve!L73))","v":0},null,null,{"$f":"IF(ISBLANK(Stikprøve!M73)=TRUE,0,ABS(Stikprøve!M73))","v":0},null,null,{"$f":"IF(ISBLANK(Stikprøve!N73)=TRUE,0,ABS(Stikprøve!N73))","v":0},null,null,null,null,"","","","","","","","",""]
["Nej",null,418,"-",426,56,28,1,4,28,5,6,null,null,{"$f":"IF(ISBLANK(Stikprøve!D74)=TRUE,0,ABS(Stikprøve!D74))","v":0},null,null,{"$f":"IF(ISBLANK(Stikprøve!E74)=TRUE,0,ABS(Stikprøve!E74))","v":0},null,null,{"$f":"IF(ISBLANK(Stikprøve!F74)=TRUE,0,ABS(Stikprøve!F74))","v":0},null,null,null,null,"","","","","","","","","",null,{"$f":"IF(ISBLANK(Stikprøve!L74)=TRUE,0,ABS(Stikprøve!L74))","v":0},null,null,{"$f":"IF(ISBLANK(Stikprøve!M74)=TRUE,0,ABS(Stikprøve!M74))","v":0},null,null,{"$f":"IF(ISBLANK(Stikprøve!N74)=TRUE,0,ABS(Stikprøve!N74))","v":0},null,null,null,null,"","","","","","","","",""]
["Nej",null,427,"-",435,57,29,1,4,28,5,6,null,null,{"$f":"IF(ISBLANK(Stikprøve!D75)=TRUE,0,ABS(Stikprøve!D75))","v":0},null,null,{"$f":"IF(ISBLANK(Stikprøve!E75)=TRUE,0,ABS(Stikprøve!E75))","v":0},null,null,{"$f":"IF(ISBLANK(Stikprøve!F75)=TRUE,0,ABS(Stikprøve!F75))","v":0},null,null,null,null,"","","","","","","","","",null,{"$f":"IF(ISBLANK(Stikprøve!L75)=TRUE,0,ABS(Stikprøve!L75))","v":0},null,null,{"$f":"IF(ISBLANK(Stikprøve!M75)=TRUE,0,ABS(Stikprøve!M75))","v":0},null,null,{"$f":"IF(ISBLANK(Stikprøve!N75)=TRUE,0,ABS(Stikprøve!N75))","v":0},null,null,null,null,"","","","","","","","",""]
["Nej",null,436,"-",445,58,29,1,4,29,5,6,null,null,{"$f":"IF(ISBLANK(Stikprøve!D76)=TRUE,0,ABS(Stikprøve!D76))","v":0},null,null,{"$f":"IF(ISBLANK(Stikprøve!E76)=TRUE,0,ABS(Stikprøve!E76))","v":0},null,null,{"$f":"IF(ISBLANK(Stikprøve!F76)=TRUE,0,ABS(Stikprøve!F76))","v":0},null,null,null,null,"","","","","","","","","",null,{"$f":"IF(ISBLANK(Stikprøve!L76)=TRUE,0,ABS(Stikprøve!L76))","v":0},null,null,{"$f":"IF(ISBLANK(Stikprøve!M76)=TRUE,0,ABS(Stikprøve!M76))","v":0},null,null,{"$f":"IF(ISBLANK(Stikprøve!N76)=TRUE,0,ABS(Stikprøve!N76))","v":0},null,null,null,null,"","","","","","","","",""]
["Nej",null,446,"-",454,59,30,1,4,29,5,6,null,null,{"$f":"IF(ISBLANK(Stikprøve!D77)=TRUE,0,ABS(Stikprøve!D77))","v":0},null,null,{"$f":"IF(ISBLANK(Stikprøve!E77)=TRUE,0,ABS(Stikprøve!E77))","v":0},null,null,{"$f":"IF(ISBLANK(Stikprøve!F77)=TRUE,0,ABS(Stikprøve!F77))","v":0},null,null,null,null,"","","","","","","","","",null,{"$f":"IF(ISBLANK(Stikprøve!L77)=TRUE,0,ABS(Stikprøve!L77))","v":0},null,null,{"$f":"IF(ISBLANK(Stikprøve!M77)=TRUE,0,ABS(Stikprøve!M77))","v":0},null,null,{"$f":"IF(ISBLANK(Stikprøve!N77)=TRUE,0,ABS(Stikprøve!N77))","v":0},null,null,null,null,"","","","","","","","",""]
["Nej",null,455,"-",463,60,30,1,4,30,5,6,null,null,{"$f":"IF(ISBLANK(Stikprøve!D78)=TRUE,0,ABS(Stikprøve!D78))","v":0},null,null,{"$f":"IF(ISBLANK(Stikprøve!E78)=TRUE,0,ABS(Stikprøve!E78))","v":0},null,null,{"$f":"IF(ISBLANK(Stikprøve!F78)=TRUE,0,ABS(Stikprøve!F78))","v":0},null,null,null,null,"","","","","","","","","",null,{"$f":"IF(ISBLANK(Stikprøve!L78)=TRUE,0,ABS(Stikprøve!L78))","v":0},null,null,{"$f":"IF(ISBLANK(Stikprøve!M78)=TRUE,0,ABS(Stikprøve!M78))","v":0},null,null,{"$f":"IF(ISBLANK(Stikprøve!N78)=TRUE,0,ABS(Stikprøve!N78))","v":0},null,null,null,null,"","","","","","","","",""]
["Nej",null,464,"-",472,61,31,1,4,30,5,6,null,null,{"$f":"IF(ISBLANK(Stikprøve!D79)=TRUE,0,ABS(Stikprøve!D79))","v":0},null,null,{"$f":"IF(ISBLANK(Stikprøve!E79)=TRUE,0,ABS(Stikprøve!E79))","v":0},null,null,{"$f":"IF(ISBLANK(Stikprøve!F79)=TRUE,0,ABS(Stikprøve!F79))","v":0},null,null,null,null,"","","","","","","","","",null,{"$f":"IF(ISBLANK(Stikprøve!L79)=TRUE,0,ABS(Stikprøve!L79))","v":0},null,null,{"$f":"IF(ISBLANK(Stikprøve!M79)=TRUE,0,ABS(Stikprøve!M79))","v":0},null,null,{"$f":"IF(ISBLANK(Stikprøve!N79)=TRUE,0,ABS(Stikprøve!N79))","v":0},null,null,null,null,"","","","","","","","",""]
["Nej",null,473,"-",481,62,31,1,4,31,5,6,null,null,{"$f":"IF(ISBLANK(Stikprøve!D80)=TRUE,0,ABS(Stikprøve!D80))","v":0},null,null,{"$f":"IF(ISBLANK(Stikprøve!E80)=TRUE,0,ABS(Stikprøve!E80))","v":0},null,null,{"$f":"IF(ISBLANK(Stikprøve!F80)=TRUE,0,ABS(Stikprøve!F80))","v":0},null,null,null,null,"","","","","","","","","",null,{"$f":"IF(ISBLANK(Stikprøve!L80)=TRUE,0,ABS(Stikprøve!L80))","v":0},null,null,{"$f":"IF(ISBLANK(Stikprøve!M80)=TRUE,0,ABS(Stikprøve!M80))","v":0},null,null,{"$f":"IF(ISBLANK(Stikprøve!N80)=TRUE,0,ABS(Stikprøve!N80))","v":0},null,null,null,null,"","","","","","","","",""]
["Nej",null,482,"-",490,63,32,1,4,31,5,6,null,null,{"$f":"IF(ISBLANK(Stikprøve!D81)=TRUE,0,ABS(Stikprøve!D81))","v":0},null,null,{"$f":"IF(ISBLANK(Stikprøve!E81)=TRUE,0,ABS(Stikprøve!E81))","v":0},null,null,{"$f":"IF(ISBLANK(Stikprøve!F81)=TRUE,0,ABS(Stikprøve!F81))","v":0},null,null,null,null,"","","","","","","","","",null,{"$f":"IF(ISBLANK(Stikprøve!L81)=TRUE,0,ABS(Stikprøve!L81))","v":0},null,null,{"$f":"IF(ISBLANK(Stikprøve!M81)=TRUE,0,ABS(Stikprøve!M81))","v":0},null,null,{"$f":"IF(ISBLANK(Stikprøve!N81)=TRUE,0,ABS(Stikprøve!N81))","v":0},null,null,null,null,"","","","","","","","",""]
["Nej",null,491,"-",499,64,32,1,4,32,5,6,null,null,{"$f":"IF(ISBLANK(Stikprøve!D82)=TRUE,0,ABS(Stikprøve!D82))","v":0},null,null,{"$f":"IF(ISBLANK(Stikprøve!E82)=TRUE,0,ABS(Stikprøve!E82))","v":0},null,null,{"$f":"IF(ISBLANK(Stikprøve!F82)=TRUE,0,ABS(Stikprøve!F82))","v":0},null,null,null,null,"","","","","","","","","",null,{"$f":"IF(ISBLANK(Stikprøve!L82)=TRUE,0,ABS(Stikprøve!L82))","v":0},null,null,{"$f":"IF(ISBLANK(Stikprøve!M82)=TRUE,0,ABS(Stikprøve!M82))","v":0},null,null,{"$f":"IF(ISBLANK(Stikprøve!N82)=TRUE,0,ABS(Stikprøve!N82))","v":0},null,null,null,null,"","","","","","","","",""]
["Ja",null,500,"-",500,64,32,2,5,32,6,7,null,null,{"$f":"IF(ISBLANK(Stikprøve!D83)=TRUE,0,ABS(Stikprøve!D83))","v":0},null,null,{"$f":"IF(ISBLANK(Stikprøve!E83)=TRUE,0,ABS(Stikprøve!E83))","v":0},null,null,{"$f":"IF(ISBLANK(Stikprøve!F83)=TRUE,0,ABS(Stikprøve!F83))","v":0},null,null,null,null,"","","","","","","","","",null,{"$f":"IF(ISBLANK(Stikprøve!L83)=TRUE,0,ABS(Stikprøve!L83))","v":0},null,null,{"$f":"IF(ISBLANK(Stikprøve!M83)=TRUE,0,ABS(Stikprøve!M83))","v":0},null,null,{"$f":"IF(ISBLANK(Stikprøve!N83)=TRUE,0,ABS(Stikprøve!N83))","v":0},null,null,null,null,"","","","","","","","",""]
["Nej",null,501,"-",519,65,33,2,5,32,6,7,null,null,{"$f":"IF(ISBLANK(Stikprøve!D84)=TRUE,0,ABS(Stikprøve!D84))","v":0},null,null,{"$f":"IF(ISBLANK(Stikprøve!E84)=TRUE,0,ABS(Stikprøve!E84))","v":0},null,null,{"$f":"IF(ISBLANK(Stikprøve!F84)=TRUE,0,ABS(Stikprøve!F84))","v":0},null,null,null,null,"","","","","","","","","",null,{"$f":"IF(ISBLANK(Stikprøve!L84)=TRUE,0,ABS(Stikprøve!L84))","v":0},null,null,{"$f":"IF(ISBLANK(Stikprøve!M84)=TRUE,0,ABS(Stikprøve!M84))","v":0},null,null,{"$f":"IF(ISBLANK(Stikprøve!N84)=TRUE,0,ABS(Stikprøve!N84))","v":0},null,null,null,null,"","","","","","","","",""]
["Nej",null,520,"-",538,66,33,2,5,33,6,7,null,null,{"$f":"IF(ISBLANK(Stikprøve!D85)=TRUE,0,ABS(Stikprøve!D85))","v":0},null,null,{"$f":"IF(ISBLANK(Stikprøve!E85)=TRUE,0,ABS(Stikprøve!E85))","v":0},null,null,{"$f":"IF(ISBLANK(Stikprøve!F85)=TRUE,0,ABS(Stikprøve!F85))","v":0},null,null,null,null,"","","","","","","","","",null,{"$f":"IF(ISBLANK(Stikprøve!L85)=TRUE,0,ABS(Stikprøve!L85))","v":0},null,null,{"$f":"IF(ISBLANK(Stikprøve!M85)=TRUE,0,ABS(Stikprøve!M85))","v":0},null,null,{"$f":"IF(ISBLANK(Stikprøve!N85)=TRUE,0,ABS(Stikprøve!N85))","v":0},null,null,null,null,"","","","","","","","",""]
["Nej",null,539,"-",558,67,34,2,5,33,6,7,null,null,{"$f":"IF(ISBLANK(Stikprøve!D86)=TRUE,0,ABS(Stikprøve!D86))","v":0},null,null,{"$f":"IF(ISBLANK(Stikprøve!E86)=TRUE,0,ABS(Stikprøve!E86))","v":0},null,null,{"$f":"IF(ISBLANK(Stikprøve!F86)=TRUE,0,ABS(Stikprøve!F86))","v":0},null,null,null,null,"","","","","","","","","",null,{"$f":"IF(ISBLANK(Stikprøve!L86)=TRUE,0,ABS(Stikprøve!L86))","v":0},null,null,{"$f":"IF(ISBLANK(Stikprøve!M86)=TRUE,0,ABS(Stikprøve!M86))","v":0},null,null,{"$f":"IF(ISBLANK(Stikprøve!N86)=TRUE,0,ABS(Stikprøve!N86))","v":0},null,null,null,null,"","","","","","","","",""]
["Nej",null,559,"-",577,68,34,2,5,34,6,7,null,null,{"$f":"IF(ISBLANK(Stikprøve!D87)=TRUE,0,ABS(Stikprøve!D87))","v":0},null,null,{"$f":"IF(ISBLANK(Stikprøve!E87)=TRUE,0,ABS(Stikprøve!E87))","v":0},null,null,{"$f":"IF(ISBLANK(Stikprøve!F87)=TRUE,0,ABS(Stikprøve!F87))","v":0},null,null,null,null,"","","","","","","","","",null,{"$f":"IF(ISBLANK(Stikprøve!L87)=TRUE,0,ABS(Stikprøve!L87))","v":0},null,null,{"$f":"IF(ISBLANK(Stikprøve!M87)=TRUE,0,ABS(Stikprøve!M87))","v":0},null,null,{"$f":"IF(ISBLANK(Stikprøve!N87)=TRUE,0,ABS(Stikprøve!N87))","v":0},null,null,null,null,"","","","","","","","",""]
["Nej",null,578,"-",597,69,35,2,5,34,6,7,null,null,{"$f":"IF(ISBLANK(Stikprøve!D88)=TRUE,0,ABS(Stikprøve!D88))","v":0},null,null,{"$f":"IF(ISBLANK(Stikprøve!E88)=TRUE,0,ABS(Stikprøve!E88))","v":0},null,null,{"$f":"IF(ISBLANK(Stikprøve!F88)=TRUE,0,ABS(Stikprøve!F88))","v":0},null,null,null,null,"","","","","","","","","",null,{"$f":"IF(ISBLANK(Stikprøve!L88)=TRUE,0,ABS(Stikprøve!L88))","v":0},null,null,{"$f":"IF(ISBLANK(Stikprøve!M88)=TRUE,0,ABS(Stikprøve!M88))","v":0},null,null,{"$f":"IF(ISBLANK(Stikprøve!N88)=TRUE,0,ABS(Stikprøve!N88))","v":0},null,null,null,null,"","","","","","","","",""]
["Nej",null,598,"-",616,70,35,2,5,35,6,7,null,null,{"$f":"IF(ISBLANK(Stikprøve!D89)=TRUE,0,ABS(Stikprøve!D89))","v":0},null,null,{"$f":"IF(ISBLANK(Stikprøve!E89)=TRUE,0,ABS(Stikprøve!E89))","v":0},null,null,{"$f":"IF(ISBLANK(Stikprøve!F89)=TRUE,0,ABS(Stikprøve!F89))","v":0},null,null,null,null,"","","","","","","","","",null,{"$f":"IF(ISBLANK(Stikprøve!L89)=TRUE,0,ABS(Stikprøve!L89))","v":0},null,null,{"$f":"IF(ISBLANK(Stikprøve!M89)=TRUE,0,ABS(Stikprøve!M89))","v":0},null,null,{"$f":"IF(ISBLANK(Stikprøve!N89)=TRUE,0,ABS(Stikprøve!N89))","v":0},null,null,null,null,"","","","","","","","",""]
["Nej",null,617,"-",636,71,36,2,5,35,6,7,null,null,{"$f":"IF(ISBLANK(Stikprøve!D90)=TRUE,0,ABS(Stikprøve!D90))","v":0},null,null,{"$f":"IF(ISBLANK(Stikprøve!E90)=TRUE,0,ABS(Stikprøve!E90))","v":0},null,null,{"$f":"IF(ISBLANK(Stikprøve!F90)=TRUE,0,ABS(Stikprøve!F90))","v":0},null,null,null,null,"","","","","","","","","",null,{"$f":"IF(ISBLANK(Stikprøve!L90)=TRUE,0,ABS(Stikprøve!L90))","v":0},null,null,{"$f":"IF(ISBLANK(Stikprøve!M90)=TRUE,0,ABS(Stikprøve!M90))","v":0},null,null,{"$f":"IF(ISBLANK(Stikprøve!N90)=TRUE,0,ABS(Stikprøve!N90))","v":0},null,null,null,null,"","","","","","","","",""]
["Nej",null,637,"-",655,72,36,2,5,36,6,7,null,null,{"$f":"IF(ISBLANK(Stikprøve!D91)=TRUE,0,ABS(Stikprøve!D91))","v":0},null,null,{"$f":"IF(ISBLANK(Stikprøve!E91)=TRUE,0,ABS(Stikprøve!E91))","v":0},null,null,{"$f":"IF(ISBLANK(Stikprøve!F91)=TRUE,0,ABS(Stikprøve!F91))","v":0},null,null,null,null,"","","","","","","","","",null,{"$f":"IF(ISBLANK(Stikprøve!L91)=TRUE,0,ABS(Stikprøve!L91))","v":0},null,null,{"$f":"IF(ISBLANK(Stikprøve!M91)=TRUE,0,ABS(Stikprøve!M91))","v":0},null,null,{"$f":"IF(ISBLANK(Stikprøve!N91)=TRUE,0,ABS(Stikprøve!N91))","v":0},null,null,null,null,"","","","","","","","",""]
["Nej",null,656,"-",675,73,37,2,5,36,6,7,null,null,{"$f":"IF(ISBLANK(Stikprøve!D92)=TRUE,0,ABS(Stikprøve!D92))","v":0},null,null,{"$f":"IF(ISBLANK(Stikprøve!E92)=TRUE,0,ABS(Stikprøve!E92))","v":0},null,null,{"$f":"IF(ISBLANK(Stikprøve!F92)=TRUE,0,ABS(Stikprøve!F92))","v":0},null,null,null,null,"","","","","","","","","",null,{"$f":"IF(ISBLANK(Stikprøve!L92)=TRUE,0,ABS(Stikprøve!L92))","v":0},null,null,{"$f":"IF(ISBLANK(Stikprøve!M92)=TRUE,0,ABS(Stikprøve!M92))","v":0},null,null,{"$f":"IF(ISBLANK(Stikprøve!N92)=TRUE,0,ABS(Stikprøve!N92))","v":0},null,null,null,null,"","","","","","","","",""]
["Nej",null,676,"-",694,74,37,2,5,37,6,7,null,null,{"$f":"IF(ISBLANK(Stikprøve!D93)=TRUE,0,ABS(Stikprøve!D93))","v":0},null,null,{"$f":"IF(ISBLANK(Stikprøve!E93)=TRUE,0,ABS(Stikprøve!E93))","v":0},null,null,{"$f":"IF(ISBLANK(Stikprøve!F93)=TRUE,0,ABS(Stikprøve!F93))","v":0},null,null,null,null,"","","","","","","","","",null,{"$f":"IF(ISBLANK(Stikprøve!L93)=TRUE,0,ABS(Stikprøve!L93))","v":0},null,null,{"$f":"IF(ISBLANK(Stikprøve!M93)=TRUE,0,ABS(Stikprøve!M93))","v":0},null,null,{"$f":"IF(ISBLANK(Stikprøve!N93)=TRUE,0,ABS(Stikprøve!N93))","v":0},null,null,null,null,"","","","","","","","",""]
["Nej",null,695,"-",{"$f":"C76-1","v":713},75,38,2,5,{"$f":"F75-G75","v":37},6,7,null,null,{"$f":"IF(ISBLANK(Stikprøve!D94)=TRUE,0,ABS(Stikprøve!D94))","v":0},null,null,{"$f":"IF(ISBLANK(Stikprøve!E94)=TRUE,0,ABS(Stikprøve!E94))","v":0},null,null,{"$f":"IF(ISBLANK(Stikprøve!F94)=TRUE,0,ABS(Stikprøve!F94))","v":0},null,null,null,null,"","","","","","","","","",null,{"$f":"IF(ISBLANK(Stikprøve!L94)=TRUE,0,ABS(Stikprøve!L94))","v":0},null,null,{"$f":"IF(ISBLANK(Stikprøve!M94)=TRUE,0,ABS(Stikprøve!M94))","v":0},null,null,{"$f":"IF(ISBLANK(Stikprøve!N94)=TRUE,0,ABS(Stikprøve!N94))","v":0},null,null,null,null,"","","","","","","","",""]
[{"$f":"IF(AND($G$2>(C76-1),$G$2<(E76+1)),\"Ja\",\"Nej\")","v":"Nej"},null,714,"-",733,76,38,2,5,38,6,7,null,null,{"$f":"IF(ISBLANK(Stikprøve!D95)=TRUE,0,ABS(Stikprøve!D95))","v":0},null,null,{"$f":"IF(ISBLANK(Stikprøve!E95)=TRUE,0,ABS(Stikprøve!E95))","v":0},null,null,{"$f":"IF(ISBLANK(Stikprøve!F95)=TRUE,0,ABS(Stikprøve!F95))","v":0},null,null,null,null,"","","","","","","","","",null,{"$f":"IF(ISBLANK(Stikprøve!L95)=TRUE,0,ABS(Stikprøve!L95))","v":0},null,null,{"$f":"IF(ISBLANK(Stikprøve!M95)=TRUE,0,ABS(Stikprøve!M95))","v":0},null,null,{"$f":"IF(ISBLANK(Stikprøve!N95)=TRUE,0,ABS(Stikprøve!N95))","v":0},null,null,null,null,"","","","","","","","",""]
["Nej",null,734,"-",752,77,39,2,5,38,7,8,null,null,{"$f":"IF(ISBLANK(Stikprøve!D96)=TRUE,0,ABS(Stikprøve!D96))","v":0},null,null,{"$f":"IF(ISBLANK(Stikprøve!E96)=TRUE,0,ABS(Stikprøve!E96))","v":0},null,null,{"$f":"IF(ISBLANK(Stikprøve!F96)=TRUE,0,ABS(Stikprøve!F96))","v":0},null,null,null,null,"","","","","","","","","",null,{"$f":"IF(ISBLANK(Stikprøve!L96)=TRUE,0,ABS(Stikprøve!L96))","v":0},null,null,{"$f":"IF(ISBLANK(Stikprøve!M96)=TRUE,0,ABS(Stikprøve!M96))","v":0},null,null,{"$f":"IF(ISBLANK(Stikprøve!N96)=TRUE,0,ABS(Stikprøve!N96))","v":0},null,null,null,null,"","","","","","","","",""]
["Nej",null,753,"-",772,78,39,2,5,39,7,8,null,null,{"$f":"IF(ISBLANK(Stikprøve!D97)=TRUE,0,ABS(Stikprøve!D97))","v":0},null,null,{"$f":"IF(ISBLANK(Stikprøve!E97)=TRUE,0,ABS(Stikprøve!E97))","v":0},null,null,{"$f":"IF(ISBLANK(Stikprøve!F97)=TRUE,0,ABS(Stikprøve!F97))","v":0},null,null,null,null,"","","","","","","","","",null,{"$f":"IF(ISBLANK(Stikprøve!L97)=TRUE,0,ABS(Stikprøve!L97))","v":0},null,null,{"$f":"IF(ISBLANK(Stikprøve!M97)=TRUE,0,ABS(Stikprøve!M97))","v":0},null,null,{"$f":"IF(ISBLANK(Stikprøve!N97)=TRUE,0,ABS(Stikprøve!N97))","v":0},null,null,null,null,"","","","","","","","",""]
["Nej",null,773,"-",791,79,40,2,5,39,7,8,null,null,{"$f":"IF(ISBLANK(Stikprøve!D98)=TRUE,0,ABS(Stikprøve!D98))","v":0},null,null,{"$f":"IF(ISBLANK(Stikprøve!E98)=TRUE,0,ABS(Stikprøve!E98))","v":0},null,null,{"$f":"IF(ISBLANK(Stikprøve!F98)=TRUE,0,ABS(Stikprøve!F98))","v":0},null,null,null,null,"","","","","","","","","",null,{"$f":"IF(ISBLANK(Stikprøve!L98)=TRUE,0,ABS(Stikprøve!L98))","v":0},null,null,{"$f":"IF(ISBLANK(Stikprøve!M98)=TRUE,0,ABS(Stikprøve!M98))","v":0},null,null,{"$f":"IF(ISBLANK(Stikprøve!N98)=TRUE,0,ABS(Stikprøve!N98))","v":0},null,null,null,null,"","","","","","","","",""]
["Nej",null,792,"-",811,80,40,2,5,40,7,8,null,null,{"$f":"IF(ISBLANK(Stikprøve!D99)=TRUE,0,ABS(Stikprøve!D99))","v":0},null,null,{"$f":"IF(ISBLANK(Stikprøve!E99)=TRUE,0,ABS(Stikprøve!E99))","v":0},null,null,{"$f":"IF(ISBLANK(Stikprøve!F99)=TRUE,0,ABS(Stikprøve!F99))","v":0},null,null,null,null,"","","","","","","","","",null,{"$f":"IF(ISBLANK(Stikprøve!L99)=TRUE,0,ABS(Stikprøve!L99))","v":0},null,null,{"$f":"IF(ISBLANK(Stikprøve!M99)=TRUE,0,ABS(Stikprøve!M99))","v":0},null,null,{"$f":"IF(ISBLANK(Stikprøve!N99)=TRUE,0,ABS(Stikprøve!N99))","v":0},null,null,null,null,"","","","","","","","",""]
["Nej",null,812,"-",830,81,41,2,5,40,7,8,null,null,{"$f":"IF(ISBLANK(Stikprøve!D100)=TRUE,0,ABS(Stikprøve!D100))","v":0},null,null,{"$f":"IF(ISBLANK(Stikprøve!E100)=TRUE,0,ABS(Stikprøve!E100))","v":0},null,null,{"$f":"IF(ISBLANK(Stikprøve!F100)=TRUE,0,ABS(Stikprøve!F100))","v":0},null,null,null,null,"","","","","","","","","",null,{"$f":"IF(ISBLANK(Stikprøve!L100)=TRUE,0,ABS(Stikprøve!L100))","v":0},null,null,{"$f":"IF(ISBLANK(Stikprøve!M100)=TRUE,0,ABS(Stikprøve!M100))","v":0},null,null,{"$f":"IF(ISBLANK(Stikprøve!N100)=TRUE,0,ABS(Stikprøve!N100))","v":0},null,null,null,null,"","","","","","","","",""]
["Nej",null,831,"-",850,82,41,2,5,41,7,8,null,null,{"$f":"IF(ISBLANK(Stikprøve!D101)=TRUE,0,ABS(Stikprøve!D101))","v":0},null,null,{"$f":"IF(ISBLANK(Stikprøve!E101)=TRUE,0,ABS(Stikprøve!E101))","v":0},null,null,{"$f":"IF(ISBLANK(Stikprøve!F101)=TRUE,0,ABS(Stikprøve!F101))","v":0},null,null,null,null,"","","","","","","","","",null,{"$f":"IF(ISBLANK(Stikprøve!L101)=TRUE,0,ABS(Stikprøve!L101))","v":0},null,null,{"$f":"IF(ISBLANK(Stikprøve!M101)=TRUE,0,ABS(Stikprøve!M101))","v":0},null,null,{"$f":"IF(ISBLANK(Stikprøve!N101)=TRUE,0,ABS(Stikprøve!N101))","v":0},null,null,null,null,"","","","","","","","",""]
["Nej",null,851,"-",869,83,42,2,5,41,7,8,null,null,{"$f":"IF(ISBLANK(Stikprøve!D102)=TRUE,0,ABS(Stikprøve!D102))","v":0},null,null,{"$f":"IF(ISBLANK(Stikprøve!E102)=TRUE,0,ABS(Stikprøve!E102))","v":0},null,null,{"$f":"IF(ISBLANK(Stikprøve!F102)=TRUE,0,ABS(Stikprøve!F102))","v":0},null,null,null,null,"","","","","","","","","",null,{"$f":"IF(ISBLANK(Stikprøve!L102)=TRUE,0,ABS(Stikprøve!L102))","v":0},null,null,{"$f":"IF(ISBLANK(Stikprøve!M102)=TRUE,0,ABS(Stikprøve!M102))","v":0},null,null,{"$f":"IF(ISBLANK(Stikprøve!N102)=TRUE,0,ABS(Stikprøve!N102))","v":0},null,null,null,null,"","","","","","","","",""]
["Nej",null,870,"-",888,84,42,2,5,42,7,8,null,null,{"$f":"IF(ISBLANK(Stikprøve!D103)=TRUE,0,ABS(Stikprøve!D103))","v":0},null,null,{"$f":"IF(ISBLANK(Stikprøve!E103)=TRUE,0,ABS(Stikprøve!E103))","v":0},null,null,{"$f":"IF(ISBLANK(Stikprøve!F103)=TRUE,0,ABS(Stikprøve!F103))","v":0},null,null,null,null,"","","","","","","","","",null,{"$f":"IF(ISBLANK(Stikprøve!L103)=TRUE,0,ABS(Stikprøve!L103))","v":0},null,null,{"$f":"IF(ISBLANK(Stikprøve!M103)=TRUE,0,ABS(Stikprøve!M103))","v":0},null,null,{"$f":"IF(ISBLANK(Stikprøve!N103)=TRUE,0,ABS(Stikprøve!N103))","v":0},null,null,null,null,"","","","","","","","",""]
["Nej",null,889,"-",908,85,43,2,5,42,7,8,null,null,{"$f":"IF(ISBLANK(Stikprøve!D104)=TRUE,0,ABS(Stikprøve!D104))","v":0},null,null,{"$f":"IF(ISBLANK(Stikprøve!E104)=TRUE,0,ABS(Stikprøve!E104))","v":0},null,null,{"$f":"IF(ISBLANK(Stikprøve!F104)=TRUE,0,ABS(Stikprøve!F104))","v":0},null,null,null,null,"","","","","","","","","",null,{"$f":"IF(ISBLANK(Stikprøve!L104)=TRUE,0,ABS(Stikprøve!L104))","v":0},null,null,{"$f":"IF(ISBLANK(Stikprøve!M104)=TRUE,0,ABS(Stikprøve!M104))","v":0},null,null,{"$f":"IF(ISBLANK(Stikprøve!N104)=TRUE,0,ABS(Stikprøve!N104))","v":0},null,null,null,null,"","","","","","","","",""]
["Nej",null,909,"-",927,86,43,2,5,43,7,8,null,null,{"$f":"IF(ISBLANK(Stikprøve!D105)=TRUE,0,ABS(Stikprøve!D105))","v":0},null,null,{"$f":"IF(ISBLANK(Stikprøve!E105)=TRUE,0,ABS(Stikprøve!E105))","v":0},null,null,{"$f":"IF(ISBLANK(Stikprøve!F105)=TRUE,0,ABS(Stikprøve!F105))","v":0},null,null,null,null,"","","","","","","","","",null,{"$f":"IF(ISBLANK(Stikprøve!L105)=TRUE,0,ABS(Stikprøve!L105))","v":0},null,null,{"$f":"IF(ISBLANK(Stikprøve!M105)=TRUE,0,ABS(Stikprøve!M105))","v":0},null,null,{"$f":"IF(ISBLANK(Stikprøve!N105)=TRUE,0,ABS(Stikprøve!N105))","v":0},null,null,null,null,"","","","","","","","",""]
["Nej",null,928,"-",947,87,44,2,5,43,7,8,null,null,{"$f":"IF(ISBLANK(Stikprøve!D106)=TRUE,0,ABS(Stikprøve!D106))","v":0},null,null,{"$f":"IF(ISBLANK(Stikprøve!E106)=TRUE,0,ABS(Stikprøve!E106))","v":0},null,null,{"$f":"IF(ISBLANK(Stikprøve!F106)=TRUE,0,ABS(Stikprøve!F106))","v":0},null,null,null,null,"","","","","","","","","",null,{"$f":"IF(ISBLANK(Stikprøve!L106)=TRUE,0,ABS(Stikprøve!L106))","v":0},null,null,{"$f":"IF(ISBLANK(Stikprøve!M106)=TRUE,0,ABS(Stikprøve!M106))","v":0},null,null,{"$f":"IF(ISBLANK(Stikprøve!N106)=TRUE,0,ABS(Stikprøve!N106))","v":0},null,null,null,null,"","","","","","","","",""]
["Nej",null,948,"-",966,88,44,2,5,44,7,8,null,null,{"$f":"IF(ISBLANK(Stikprøve!D107)=TRUE,0,ABS(Stikprøve!D107))","v":0},null,null,{"$f":"IF(ISBLANK(Stikprøve!E107)=TRUE,0,ABS(Stikprøve!E107))","v":0},null,null,{"$f":"IF(ISBLANK(Stikprøve!F107)=TRUE,0,ABS(Stikprøve!F107))","v":0},null,null,null,null,"","","","","","","","","",null,{"$f":"IF(ISBLANK(Stikprøve!L107)=TRUE,0,ABS(Stikprøve!L107))","v":0},null,null,{"$f":"IF(ISBLANK(Stikprøve!M107)=TRUE,0,ABS(Stikprøve!M107))","v":0},null,null,{"$f":"IF(ISBLANK(Stikprøve!N107)=TRUE,0,ABS(Stikprøve!N107))","v":0},null,null,null,null,"","","","","","","","",""]
["Nej",null,967,"-",{"$f":"C90-1","v":986},89,45,2,5,44,8,9,null,null,{"$f":"IF(ISBLANK(Stikprøve!D108)=TRUE,0,ABS(Stikprøve!D108))","v":0},null,null,{"$f":"IF(ISBLANK(Stikprøve!E108)=TRUE,0,ABS(Stikprøve!E108))","v":0},null,null,{"$f":"IF(ISBLANK(Stikprøve!F108)=TRUE,0,ABS(Stikprøve!F108))","v":0},null,null,null,null,"","","","","","","","","",null,{"$f":"IF(ISBLANK(Stikprøve!L108)=TRUE,0,ABS(Stikprøve!L108))","v":0},null,null,{"$f":"IF(ISBLANK(Stikprøve!M108)=TRUE,0,ABS(Stikprøve!M108))","v":0},null,null,{"$f":"IF(ISBLANK(Stikprøve!N108)=TRUE,0,ABS(Stikprøve!N108))","v":0},null,null,null,null,"","","","","","","","",""]
["Nej",null,987,"-",1005,90,45,2,5,45,8,9,null,null,{"$f":"IF(ISBLANK(Stikprøve!D109)=TRUE,0,ABS(Stikprøve!D109))","v":0},null,null,{"$f":"IF(ISBLANK(Stikprøve!E109)=TRUE,0,ABS(Stikprøve!E109))","v":0},null,null,{"$f":"IF(ISBLANK(Stikprøve!F109)=TRUE,0,ABS(Stikprøve!F109))","v":0},null,null,null,null,"","","","",{"$f":"IF($O90>U$19,1,IF($R90>U$20,1,IF($U90>U$21,1,\"\")))","v":""},"","","","",null,{"$f":"IF(ISBLANK(Stikprøve!L109)=TRUE,0,ABS(Stikprøve!L109))","v":0},null,null,{"$f":"IF(ISBLANK(Stikprøve!M109)=TRUE,0,ABS(Stikprøve!M109))","v":0},null,null,{"$f":"IF(ISBLANK(Stikprøve!N109)=TRUE,0,ABS(Stikprøve!N109))","v":0},null,null,null,null,"","","","","",{"$f":"IF($AJ90>V$19,1,IF($AM90>V$20,1,IF($AP90>V$21,1,\"\")))","v":""},"","",""]
["Nej",null,1006,"-",1025,91,46,2,5,45,8,9,null,null,{"$f":"IF(ISBLANK(Stikprøve!D110)=TRUE,0,ABS(Stikprøve!D110))","v":0},null,null,{"$f":"IF(ISBLANK(Stikprøve!E110)=TRUE,0,ABS(Stikprøve!E110))","v":0},null,null,{"$f":"IF(ISBLANK(Stikprøve!F110)=TRUE,0,ABS(Stikprøve!F110))","v":0},null,null,null,null,"","","","","","","","","",null,{"$f":"IF(ISBLANK(Stikprøve!L110)=TRUE,0,ABS(Stikprøve!L110))","v":0},null,null,{"$f":"IF(ISBLANK(Stikprøve!M110)=TRUE,0,ABS(Stikprøve!M110))","v":0},null,null,{"$f":"IF(ISBLANK(Stikprøve!N110)=TRUE,0,ABS(Stikprøve!N110))","v":0},null,null,null,null,"","","","","","","","",""]
["Nej",null,1026,"-",1044,92,46,2,5,46,8,9,null,null,{"$f":"IF(ISBLANK(Stikprøve!D111)=TRUE,0,ABS(Stikprøve!D111))","v":0},null,null,{"$f":"IF(ISBLANK(Stikprøve!E111)=TRUE,0,ABS(Stikprøve!E111))","v":0},null,null,{"$f":"IF(ISBLANK(Stikprøve!F111)=TRUE,0,ABS(Stikprøve!F111))","v":0},null,null,null,null,"","","","","","","","","",null,{"$f":"IF(ISBLANK(Stikprøve!L111)=TRUE,0,ABS(Stikprøve!L111))","v":0},null,null,{"$f":"IF(ISBLANK(Stikprøve!M111)=TRUE,0,ABS(Stikprøve!M111))","v":0},null,null,{"$f":"IF(ISBLANK(Stikprøve!N111)=TRUE,0,ABS(Stikprøve!N111))","v":0},null,null,null,null,"","","","","","","","",""]
["Nej",null,1045,"-",1063,93,47,2,5,46,8,9,null,null,{"$f":"IF(ISBLANK(Stikprøve!D112)=TRUE,0,ABS(Stikprøve!D112))","v":0},null,null,{"$f":"IF(ISBLANK(Stikprøve!E112)=TRUE,0,ABS(Stikprøve!E112))","v":0},null,null,{"$f":"IF(ISBLANK(Stikprøve!F112)=TRUE,0,ABS(Stikprøve!F112))","v":0},null,null,null,null,"","","","","","","","","",null,{"$f":"IF(ISBLANK(Stikprøve!L112)=TRUE,0,ABS(Stikprøve!L112))","v":0},null,null,{"$f":"IF(ISBLANK(Stikprøve!M112)=TRUE,0,ABS(Stikprøve!M112))","v":0},null,null,{"$f":"IF(ISBLANK(Stikprøve!N112)=TRUE,0,ABS(Stikprøve!N112))","v":0},null,null,null,null,"","","","","","","","",""]
["Nej",null,1064,"-",1083,94,47,2,5,47,8,9,null,null,{"$f":"IF(ISBLANK(Stikprøve!D113)=TRUE,0,ABS(Stikprøve!D113))","v":0},null,null,{"$f":"IF(ISBLANK(Stikprøve!E113)=TRUE,0,ABS(Stikprøve!E113))","v":0},null,null,{"$f":"IF(ISBLANK(Stikprøve!F113)=TRUE,0,ABS(Stikprøve!F113))","v":0},null,null,null,null,"","","","","","","","","",null,{"$f":"IF(ISBLANK(Stikprøve!L113)=TRUE,0,ABS(Stikprøve!L113))","v":0},null,null,{"$f":"IF(ISBLANK(Stikprøve!M113)=TRUE,0,ABS(Stikprøve!M113))","v":0},null,null,{"$f":"IF(ISBLANK(Stikprøve!N113)=TRUE,0,ABS(Stikprøve!N113))","v":0},null,null,null,null,"","","","","","","","",""]
["Nej",null,1084,"-",1102,95,48,2,5,47,8,9,null,null,{"$f":"IF(ISBLANK(Stikprøve!D114)=TRUE,0,ABS(Stikprøve!D114))","v":0},null,null,{"$f":"IF(ISBLANK(Stikprøve!E114)=TRUE,0,ABS(Stikprøve!E114))","v":0},null,null,{"$f":"IF(ISBLANK(Stikprøve!F114)=TRUE,0,ABS(Stikprøve!F114))","v":0},null,null,null,null,{"$f":"IF($O95>Q$19,1,IF($R95>Q$20,1,IF($U95>Q$21,1,\"\")))","v":""},"","","","","","","",{"$f":"IF($O95>Y$19,1,IF($R95>Y$20,1,IF($U95>Y$21,1,\"\")))","v":""},null,{"$f":"IF(ISBLANK(Stikprøve!L114)=TRUE,0,ABS(Stikprøve!L114))","v":0},null,null,{"$f":"IF(ISBLANK(Stikprøve!M114)=TRUE,0,ABS(Stikprøve!M114))","v":0},null,null,{"$f":"IF(ISBLANK(Stikprøve!N114)=TRUE,0,ABS(Stikprøve!N114))","v":0},null,null,null,null,{"$f":"IF($AJ95>Q$19,1,IF($AM95>Q$20,1,IF($AP95>Q$21,1,\"\")))","v":""},{"$f":"IF($AJ95>R$19,1,IF($AM95>R$20,1,IF($AP95>R$21,1,\"\")))","v":""},"","","","","","",{"$f":"IF($AJ95>Y$19,1,IF($AM95>Y$20,1,IF($AP95>Y$21,1,\"\")))","v":""}]
["Nej",null,1103,"-",1122,96,48,2,5,48,8,9,null,null,{"$f":"IF(ISBLANK(Stikprøve!D115)=TRUE,0,ABS(Stikprøve!D115))","v":0},null,null,{"$f":"IF(ISBLANK(Stikprøve!E115)=TRUE,0,ABS(Stikprøve!E115))","v":0},null,null,{"$f":"IF(ISBLANK(Stikprøve!F115)=TRUE,0,ABS(Stikprøve!F115))","v":0},null,null,null,null,"","","","","","","","","",null,{"$f":"IF(ISBLANK(Stikprøve!L115)=TRUE,0,ABS(Stikprøve!L115))","v":0},null,null,{"$f":"IF(ISBLANK(Stikprøve!M115)=TRUE,0,ABS(Stikprøve!M115))","v":0},null,null,{"$f":"IF(ISBLANK(Stikprøve!N115)=TRUE,0,ABS(Stikprøve!N115))","v":0},null,null,null,null,"","","","","","","","",""]
["Nej",null,1123,"-",1141,97,49,2,5,48,8,9,null,null,{"$f":"IF(ISBLANK(Stikprøve!D116)=TRUE,0,ABS(Stikprøve!D116))","v":0},null,null,{"$f":"IF(ISBLANK(Stikprøve!E116)=TRUE,0,ABS(Stikprøve!E116))","v":0},null,null,{"$f":"IF(ISBLANK(Stikprøve!F116)=TRUE,0,ABS(Stikprøve!F116))","v":0},null,null,null,null,"","","","","","","","","",null,{"$f":"IF(ISBLANK(Stikprøve!L116)=TRUE,0,ABS(Stikprøve!L116))","v":0},null,null,{"$f":"IF(ISBLANK(Stikprøve!M116)=TRUE,0,ABS(Stikprøve!M116))","v":0},null,null,{"$f":"IF(ISBLANK(Stikprøve!N116)=TRUE,0,ABS(Stikprøve!N116))","v":0},null,null,null,null,"","","","","","","","",""]
["Nej",null,1142,"-",1161,98,49,2,5,49,8,9,null,null,{"$f":"IF(ISBLANK(Stikprøve!D117)=TRUE,0,ABS(Stikprøve!D117))","v":0},null,null,{"$f":"IF(ISBLANK(Stikprøve!E117)=TRUE,0,ABS(Stikprøve!E117))","v":0},null,null,{"$f":"IF(ISBLANK(Stikprøve!F117)=TRUE,0,ABS(Stikprøve!F117))","v":0},null,null,null,null,"","","","","","","","","",null,{"$f":"IF(ISBLANK(Stikprøve!L117)=TRUE,0,ABS(Stikprøve!L117))","v":0},null,null,{"$f":"IF(ISBLANK(Stikprøve!M117)=TRUE,0,ABS(Stikprøve!M117))","v":0},null,null,{"$f":"IF(ISBLANK(Stikprøve!N117)=TRUE,0,ABS(Stikprøve!N117))","v":0},null,null,null,null,"","","","","","","","",""]
["Nej",null,1162,"-",1180,99,50,2,5,49,8,9,null,null,{"$f":"IF(ISBLANK(Stikprøve!D118)=TRUE,0,ABS(Stikprøve!D118))","v":0},null,null,{"$f":"IF(ISBLANK(Stikprøve!E118)=TRUE,0,ABS(Stikprøve!E118))","v":0},null,null,{"$f":"IF(ISBLANK(Stikprøve!F118)=TRUE,0,ABS(Stikprøve!F118))","v":0},null,null,null,null,"","","","","","","","","",null,{"$f":"IF(ISBLANK(Stikprøve!L118)=TRUE,0,ABS(Stikprøve!L118))","v":0},null,null,{"$f":"IF(ISBLANK(Stikprøve!M118)=TRUE,0,ABS(Stikprøve!M118))","v":0},null,null,{"$f":"IF(ISBLANK(Stikprøve!N118)=TRUE,0,ABS(Stikprøve!N118))","v":0},null,null,null,null,"","","","","","","","",""]
["Nej",null,1181,"-",1199,100,50,2,5,50,8,9,null,null,{"$f":"IF(ISBLANK(Stikprøve!D119)=TRUE,0,ABS(Stikprøve!D119))","v":0},null,null,{"$f":"IF(ISBLANK(Stikprøve!E119)=TRUE,0,ABS(Stikprøve!E119))","v":0},null,null,{"$f":"IF(ISBLANK(Stikprøve!F119)=TRUE,0,ABS(Stikprøve!F119))","v":0},null,null,null,null,"","","","","","","","","",null,{"$f":"IF(ISBLANK(Stikprøve!L119)=TRUE,0,ABS(Stikprøve!L119))","v":0},null,null,{"$f":"IF(ISBLANK(Stikprøve!M119)=TRUE,0,ABS(Stikprøve!M119))","v":0},null,null,{"$f":"IF(ISBLANK(Stikprøve!N119)=TRUE,0,ABS(Stikprøve!N119))","v":0},null,null,null,null,"","","","","","","","",""]
["Nej",null,1200,"-",1200,100,50,3,6,50,9,10,null,null,{"$f":"IF(ISBLANK(Stikprøve!D120)=TRUE,0,ABS(Stikprøve!D120))","v":0},null,null,{"$f":"IF(ISBLANK(Stikprøve!E120)=TRUE,0,ABS(Stikprøve!E120))","v":0},null,null,{"$f":"IF(ISBLANK(Stikprøve!F120)=TRUE,0,ABS(Stikprøve!F120))","v":0},null,null,null,null,"","","","","","","","","",null,{"$f":"IF(ISBLANK(Stikprøve!L120)=TRUE,0,ABS(Stikprøve!L120))","v":0},null,null,{"$f":"IF(ISBLANK(Stikprøve!M120)=TRUE,0,ABS(Stikprøve!M120))","v":0},null,null,{"$f":"IF(ISBLANK(Stikprøve!N120)=TRUE,0,ABS(Stikprøve!N120))","v":0},null,null,null,null,"","","","","","","","",""]
["Nej",null,1201,"-",1233,101,51,3,6,50,9,10,null,null,{"$f":"IF(ISBLANK(Stikprøve!D121)=TRUE,0,ABS(Stikprøve!D121))","v":0},null,null,{"$f":"IF(ISBLANK(Stikprøve!E121)=TRUE,0,ABS(Stikprøve!E121))","v":0},null,null,{"$f":"IF(ISBLANK(Stikprøve!F121)=TRUE,0,ABS(Stikprøve!F121))","v":0},null,null,null,null,"","","","","","","","","",null,{"$f":"IF(ISBLANK(Stikprøve!L121)=TRUE,0,ABS(Stikprøve!L121))","v":0},null,null,{"$f":"IF(ISBLANK(Stikprøve!M121)=TRUE,0,ABS(Stikprøve!M121))","v":0},null,null,{"$f":"IF(ISBLANK(Stikprøve!N121)=TRUE,0,ABS(Stikprøve!N121))","v":0},null,null,null,null,"","","","","","","","",""]
["Nej",null,1234,"-",1266,102,51,3,6,51,9,10,null,null,{"$f":"IF(ISBLANK(Stikprøve!D122)=TRUE,0,ABS(Stikprøve!D122))","v":0},null,null,{"$f":"IF(ISBLANK(Stikprøve!E122)=TRUE,0,ABS(Stikprøve!E122))","v":0},null,null,{"$f":"IF(ISBLANK(Stikprøve!F122)=TRUE,0,ABS(Stikprøve!F122))","v":0},null,null,null,null,"","","","","","","","","",null,{"$f":"IF(ISBLANK(Stikprøve!L122)=TRUE,0,ABS(Stikprøve!L122))","v":0},null,null,{"$f":"IF(ISBLANK(Stikprøve!M122)=TRUE,0,ABS(Stikprøve!M122))","v":0},null,null,{"$f":"IF(ISBLANK(Stikprøve!N122)=TRUE,0,ABS(Stikprøve!N122))","v":0},null,null,null,null,"","","","","","","","",""]
["Nej",null,1267,"-",1300,103,52,3,6,51,9,10,null,null,{"$f":"IF(ISBLANK(Stikprøve!D123)=TRUE,0,ABS(Stikprøve!D123))","v":0},null,null,{"$f":"IF(ISBLANK(Stikprøve!E123)=TRUE,0,ABS(Stikprøve!E123))","v":0},null,null,{"$f":"IF(ISBLANK(Stikprøve!F123)=TRUE,0,ABS(Stikprøve!F123))","v":0},null,null,null,null,"","","","","","","","","",null,{"$f":"IF(ISBLANK(Stikprøve!L123)=TRUE,0,ABS(Stikprøve!L123))","v":0},null,null,{"$f":"IF(ISBLANK(Stikprøve!M123)=TRUE,0,ABS(Stikprøve!M123))","v":0},null,null,{"$f":"IF(ISBLANK(Stikprøve!N123)=TRUE,0,ABS(Stikprøve!N123))","v":0},null,null,null,null,"","","","","","","","",""]
["Nej",null,1301,"-",1333,104,52,3,6,52,9,10,null,null,{"$f":"IF(ISBLANK(Stikprøve!D124)=TRUE,0,ABS(Stikprøve!D124))","v":0},null,null,{"$f":"IF(ISBLANK(Stikprøve!E124)=TRUE,0,ABS(Stikprøve!E124))","v":0},null,null,{"$f":"IF(ISBLANK(Stikprøve!F124)=TRUE,0,ABS(Stikprøve!F124))","v":0},null,null,null,null,"","","","","","","","","",null,{"$f":"IF(ISBLANK(Stikprøve!L124)=TRUE,0,ABS(Stikprøve!L124))","v":0},null,null,{"$f":"IF(ISBLANK(Stikprøve!M124)=TRUE,0,ABS(Stikprøve!M124))","v":0},null,null,{"$f":"IF(ISBLANK(Stikprøve!N124)=TRUE,0,ABS(Stikprøve!N124))","v":0},null,null,null,null,"","","","","","","","",""]
["Nej",null,1334,"-",1366,105,53,3,6,52,9,10,null,null,{"$f":"IF(ISBLANK(Stikprøve!D125)=TRUE,0,ABS(Stikprøve!D125))","v":0},null,null,{"$f":"IF(ISBLANK(Stikprøve!E125)=TRUE,0,ABS(Stikprøve!E125))","v":0},null,null,{"$f":"IF(ISBLANK(Stikprøve!F125)=TRUE,0,ABS(Stikprøve!F125))","v":0},null,null,null,null,"","","","","","","","","",null,{"$f":"IF(ISBLANK(Stikprøve!L125)=TRUE,0,ABS(Stikprøve!L125))","v":0},null,null,{"$f":"IF(ISBLANK(Stikprøve!M125)=TRUE,0,ABS(Stikprøve!M125))","v":0},null,null,{"$f":"IF(ISBLANK(Stikprøve!N125)=TRUE,0,ABS(Stikprøve!N125))","v":0},null,null,null,null,"","","","","","","","",""]
["Nej",null,1367,"-",1400,106,53,3,6,{"$f":"F107-G107","v":53},9,10,null,null,{"$f":"IF(ISBLANK(Stikprøve!D126)=TRUE,0,ABS(Stikprøve!D126))","v":0},null,null,{"$f":"IF(ISBLANK(Stikprøve!E126)=TRUE,0,ABS(Stikprøve!E126))","v":0},null,null,{"$f":"IF(ISBLANK(Stikprøve!F126)=TRUE,0,ABS(Stikprøve!F126))","v":0},null,null,null,null,"","","","","","","","","",null,{"$f":"IF(ISBLANK(Stikprøve!L126)=TRUE,0,ABS(Stikprøve!L126))","v":0},null,null,{"$f":"IF(ISBLANK(Stikprøve!M126)=TRUE,0,ABS(Stikprøve!M126))","v":0},null,null,{"$f":"IF(ISBLANK(Stikprøve!N126)=TRUE,0,ABS(Stikprøve!N126))","v":0},null,null,null,null,"","","","","","","","",""]
["Nej",null,1401,"-",1433,107,54,3,6,53,9,10,null,null,{"$f":"IF(ISBLANK(Stikprøve!D127)=TRUE,0,ABS(Stikprøve!D127))","v":0},null,null,{"$f":"IF(ISBLANK(Stikprøve!E127)=TRUE,0,ABS(Stikprøve!E127))","v":0},null,null,{"$f":"IF(ISBLANK(Stikprøve!F127)=TRUE,0,ABS(Stikprøve!F127))","v":0},null,null,null,null,"","","","","","","","","",null,{"$f":"IF(ISBLANK(Stikprøve!L127)=TRUE,0,ABS(Stikprøve!L127))","v":0},null,null,{"$f":"IF(ISBLANK(Stikprøve!M127)=TRUE,0,ABS(Stikprøve!M127))","v":0},null,null,{"$f":"IF(ISBLANK(Stikprøve!N127)=TRUE,0,ABS(Stikprøve!N127))","v":0},null,null,null,null,"","","","","","","","",""]
["Nej",null,1434,"-",1466,108,54,3,6,54,9,10,null,null,{"$f":"IF(ISBLANK(Stikprøve!D128)=TRUE,0,ABS(Stikprøve!D128))","v":0},null,null,{"$f":"IF(ISBLANK(Stikprøve!E128)=TRUE,0,ABS(Stikprøve!E128))","v":0},null,null,{"$f":"IF(ISBLANK(Stikprøve!F128)=TRUE,0,ABS(Stikprøve!F128))","v":0},null,null,null,null,"","","","","","","","","",null,{"$f":"IF(ISBLANK(Stikprøve!L128)=TRUE,0,ABS(Stikprøve!L128))","v":0},null,null,{"$f":"IF(ISBLANK(Stikprøve!M128)=TRUE,0,ABS(Stikprøve!M128))","v":0},null,null,{"$f":"IF(ISBLANK(Stikprøve!N128)=TRUE,0,ABS(Stikprøve!N128))","v":0},null,null,null,null,"","","","","","","","",""]
["Nej",null,1467,"-",1500,109,55,3,6,54,9,10]
["Nej",null,1501,"-",1533,110,55,3,6,55,9,10,null,null,"Intervalgrænser (afvigelser i %) for de tre målepunkter:",null,null,null,null,null,null,null,null,null,null,null,null,null,null,null,null,null,null,null,null,"Intervalgrænser (afvigelser i %) for de tre målepunkter:"]
["Nej",null,1534,"-",1566,111,56,3,6,55,9,10]
["Nej",null,1567,"-",1600,112,56,3,6,56,9,10,null,null,"Max. Antal År",9,8,7,6,5,4,3,2,1,0,null,null,null,null,null,null,null,null,null,null,"Max. Antal År",9,8,7,6,5,4,3,2,1,0]
["Nej",null,1601,"-",1633,113,57,3,6,56,9,10,null,null,"Målepunkt 1",null,6.3,{"$f":"Q114+6.3/8","v":7.0874999999999995},{"$f":"R114+6.3/8","v":7.8749999999999991},{"$f":"S114+6.3/8","v":8.6624999999999996},{"$f":"T114+6.3/8","v":9.4499999999999993},{"$f":"U114+6.3/8","v":10.237499999999999},{"$f":"V114+6.3/8","v":11.024999999999999},{"$f":"W114+6.3/8","v":11.812499999999998},{"$f":"X114+6.3/8","v":12.599999999999998},null,null,null,null,null,null,null,null,null,null,"Målepunkt 1",null,6.3,{"$f":"AL114+6.3/8","v":7.0874999999999995},{"$f":"AM114+6.3/8","v":7.8749999999999991},{"$f":"AN114+6.3/8","v":8.6624999999999996},{"$f":"AO114+6.3/8","v":9.4499999999999993},{"$f":"AP114+6.3/8","v":10.237499999999999},{"$f":"AQ114+6.3/8","v":11.024999999999999},{"$f":"AR114+6.3/8","v":11.812499999999998},{"$f":"AS114+6.3/8","v":12.599999999999998}]
["Nej",null,1634,"-",1666,114,57,3,6,57,9,10,null,null,"Målepunkt 2",null,5,{"$f":"Q115+(5/8)","v":5.625},{"$f":"R115+(5/8)","v":6.25},{"$f":"S115+(5/8)","v":6.875},{"$f":"T115+(5/8)","v":7.5},{"$f":"U115+(5/8)","v":8.125},{"$f":"V115+(5/8)","v":8.75},{"$f":"W115+(5/8)","v":9.375},{"$f":"X115+(5/8)","v":10},null,null,null,null,null,null,null,null,null,null,"Målepunkt 2",null,5,{"$f":"AL115+(5/8)","v":5.625},{"$f":"AM115+(5/8)","v":6.25},{"$f":"AN115+(5/8)","v":6.875},{"$f":"AO115+(5/8)","v":7.5},{"$f":"AP115+(5/8)","v":8.125},{"$f":"AQ115+(5/8)","v":8.75},{"$f":"AR115+(5/8)","v":9.375},{"$f":"AS115+(5/8)","v":10}]
["Nej",null,1667,"-",1700,115,58,3,6,57,9,10,null,null,"Målepunkt 3",null,5.2,{"$f":"Q116+5.2/8","v":5.8500000000000005},{"$f":"R116+5.2/8","v":6.5000000000000009},{"$f":"S116+5.2/8","v":7.1500000000000012},{"$f":"T116+5.2/8","v":7.8000000000000016},{"$f":"U116+5.2/8","v":8.4500000000000011},{"$f":"V116+5.2/8","v":9.1000000000000014},{"$f":"W116+5.2/8","v":9.7500000000000018},{"$f":"X116+5.2/8","v":10.400000000000002},null,null,null,null,null,null,null,null,null,null,"Målepunkt 3",null,5.2,{"$f":"AL116+5.2/8","v":5.8500000000000005},{"$f":"AM116+5.2/8","v":6.5000000000000009},{"$f":"AN116+5.2/8","v":7.1500000000000012},{"$f":"AO116+5.2/8","v":7.8000000000000016},{"$f":"AP116+5.2/8","v":8.4500000000000011},{"$f":"AQ116+5.2/8","v":9.1000000000000014},{"$f":"AR116+5.2/8","v":9.7500000000000018},{"$f":"AS116+5.2/8","v":10.400000000000002}]
["Nej",null,1701,"-",1733,116,58,3,6,58,9,10]
["Nej",null,1734,"-",1766,117,59,3,6,58,9,10,null,null,"Stikprøve 1: Optælling af målere til grafer",null,null,null,null,null,null,null,null,null,null,null,null,null,null,null,null,null,null,null,null,"Stikprøve 2: Optælling af målere til grafer"]
["Nej",null,1767,"-",1800,118,59,3,6,59,9,10,null,null,"Målere der overkrider de forskellige grænser",null,null,null,null,null,null,null,null,null,null,null,null,null,null,null,null,null,null,null,null,"Målere der overkrider de forskellige grænser"]
["Nej",null,1801,"-",1833,119,60,3,6,59,9,10,null,null,"Målepunkt 1",null,{"$f":"COUNTIF($O$30:INDIRECT(ADDRESS(29+$G$3,15,1,,\"Beregninger\")),\">\"&Q114)","v":0},{"$f":"COUNTIF($O$30:INDIRECT(ADDRESS(29+$G$3,15,1,,\"Beregninger\")),\">\"&R114)","v":0},{"$f":"COUNTIF($O$30:INDIRECT(ADDRESS(29+$G$3,15,1,,\"Beregninger\")),\">\"&S114)","v":0},{"$f":"COUNTIF($O$30:INDIRECT(ADDRESS(29+$G$3,15,1,,\"Beregninger\")),\">\"&T114)","v":0},{"$f":"COUNTIF($O$30:INDIRECT(ADDRESS(29+$G$3,15,1,,\"Beregninger\")),\">\"&U114)","v":0},{"$f":"COUNTIF($O$30:INDIRECT(ADDRESS(29+$G$3,15,1,,\"Beregninger\")),\">\"&V114)","v":0},{"$f":"COUNTIF($O$30:INDIRECT(ADDRESS(29+$G$3,15,1,,\"Beregninger\")),\">\"&W114)","v":0},{"$f":"COUNTIF($O$30:INDIRECT(ADDRESS(29+$G$3,15,1,,\"Beregninger\")),\">\"&X114)","v":0},{"$f":"COUNTIF($O$30:INDIRECT(ADDRESS(29+$G$3,15,1,,\"Beregninger\")),\">\"&Y114)","v":0},null,null,null,null,null,null,null,null,null,null,"Målepunkt 1",null,{"$f":"COUNTIF($AJ$30:INDIRECT(ADDRESS(29+$G$3,36,1,,\"Beregninger\")),\">\"&AL114)","v":0},{"$f":"COUNTIF($AJ$30:INDIRECT(ADDRESS(29+$G$3,36,1,,\"Beregninger\")),\">\"&AM114)","v":0},{"$f":"COUNTIF($AJ$30:INDIRECT(ADDRESS(29+$G$3,36,1,,\"Beregninger\")),\">\"&AN114)","v":0},{"$f":"COUNTIF($AJ$30:INDIRECT(ADDRESS(29+$G$3,36,1,,\"Beregninger\")),\">\"&AO114)","v":0},{"$f":"COUNTIF($AJ$30:INDIRECT(ADDRESS(29+$G$3,36,1,,\"Beregninger\")),\">\"&AP114)","v":0},{"$f":"COUNTIF($AJ$30:INDIRECT(ADDRESS(29+$G$3,36,1,,\"Beregninger\")),\">\"&AQ114)","v":0},{"$f":"COUNTIF($AJ$30:INDIRECT(ADDRESS(29+$G$3,36,1,,\"Beregninger\")),\">\"&AR114)","v":0},{"$f":"COUNTIF($AJ$30:INDIRECT(ADDRESS(29+$G$3,36,1,,\"Beregninger\")),\">\"&AS114)","v":0},{"$f":"COUNTIF($AJ$30:INDIRECT(ADDRESS(29+$G$3,36,1,,\"Beregninger\")),\">\"&AT114)","v":0}]
["Nej",null,1834,"-",1866,120,60,3,6,60,9,10,null,null,"Målepunkt 2",null,{"$f":"COUNTIF($R$30:INDIRECT(ADDRESS(29+$G$3,18,1,,\"Beregninger\")),\">\"&Q115)","v":0},{"$f":"COUNTIF($R$30:INDIRECT(ADDRESS(29+$G$3,18,1,,\"Beregninger\")),\">\"&R115)","v":0},{"$f":"COUNTIF($R$30:INDIRECT(ADDRESS(29+$G$3,18,1,,\"Beregninger\")),\">\"&S115)","v":0},{"$f":"COUNTIF($R$30:INDIRECT(ADDRESS(29+$G$3,18,1,,\"Beregninger\")),\">\"&T115)","v":0},{"$f":"COUNTIF($R$30:INDIRECT(ADDRESS(29+$G$3,18,1,,\"Beregninger\")),\">\"&U115)","v":0},{"$f":"COUNTIF($R$30:INDIRECT(ADDRESS(29+$G$3,18,1,,\"Beregninger\")),\">\"&V115)","v":0},{"$f":"COUNTIF($R$30:INDIRECT(ADDRESS(29+$G$3,18,1,,\"Beregninger\")),\">\"&W115)","v":0},{"$f":"COUNTIF($R$30:INDIRECT(ADDRESS(29+$G$3,18,1,,\"Beregninger\")),\">\"&X115)","v":0},{"$f":"COUNTIF($R$30:INDIRECT(ADDRESS(29+$G$3,18,1,,\"Beregninger\")),\">\"&Y115)","v":0},null,null,null,null,null,null,null,null,null,null,"Målepunkt 2",null,{"$f":"COUNTIF($AM$30:INDIRECT(ADDRESS(29+$G$3,39,1,,\"Beregninger\")),\">\"&AL115)","v":0},{"$f":"COUNTIF($AM$30:INDIRECT(ADDRESS(29+$G$3,39,1,,\"Beregninger\")),\">\"&AM115)","v":0},{"$f":"COUNTIF($AM$30:INDIRECT(ADDRESS(29+$G$3,39,1,,\"Beregninger\")),\">\"&AN115)","v":0},{"$f":"COUNTIF($AM$30:INDIRECT(ADDRESS(29+$G$3,39,1,,\"Beregninger\")),\">\"&AO115)","v":0},{"$f":"COUNTIF($AM$30:INDIRECT(ADDRESS(29+$G$3,39,1,,\"Beregninger\")),\">\"&AP115)","v":0},{"$f":"COUNTIF($AM$30:INDIRECT(ADDRESS(29+$G$3,39,1,,\"Beregninger\")),\">\"&AQ115)","v":0},{"$f":"COUNTIF($AM$30:INDIRECT(ADDRESS(29+$G$3,39,1,,\"Beregninger\")),\">\"&AR115)","v":0},{"$f":"COUNTIF($AM$30:INDIRECT(ADDRESS(29+$G$3,39,1,,\"Beregninger\")),\">\"&AS115)","v":0},{"$f":"COUNTIF($AM$30:INDIRECT(ADDRESS(29+$G$3,39,1,,\"Beregninger\")),\">\"&AT115)","v":0}]
["Nej",null,1867,"-",1900,121,61,3,7,60,10,11,null,null,"Målepunkt 3",null,{"$f":"COUNTIF($U$30:INDIRECT(ADDRESS(29+$G$3,21,1,,\"Beregninger\")),\">\"&Q116)","v":0},{"$f":"COUNTIF($U$30:INDIRECT(ADDRESS(29+$G$3,21,1,,\"Beregninger\")),\">\"&R116)","v":0},{"$f":"COUNTIF($U$30:INDIRECT(ADDRESS(29+$G$3,21,1,,\"Beregninger\")),\">\"&S116)","v":0},{"$f":"COUNTIF($U$30:INDIRECT(ADDRESS(29+$G$3,21,1,,\"Beregninger\")),\">\"&T116)","v":0},{"$f":"COUNTIF($U$30:INDIRECT(ADDRESS(29+$G$3,21,1,,\"Beregninger\")),\">\"&U116)","v":0},{"$f":"COUNTIF($U$30:INDIRECT(ADDRESS(29+$G$3,21,1,,\"Beregninger\")),\">\"&V116)","v":0},{"$f":"COUNTIF($U$30:INDIRECT(ADDRESS(29+$G$3,21,1,,\"Beregninger\")),\">\"&W116)","v":0},{"$f":"COUNTIF($U$30:INDIRECT(ADDRESS(29+$G$3,21,1,,\"Beregninger\")),\">\"&X116)","v":0},{"$f":"COUNTIF($U$30:INDIRECT(ADDRESS(29+$G$3,21,1,,\"Beregninger\")),\">\"&Y116)","v":0},null,null,null,null,null,null,null,null,null,null,"Målepunkt 3",null,{"$f":"COUNTIF($AP$30:INDIRECT(ADDRESS(29+$G$3,42,1,,\"Beregninger\")),\">\"&AL116)","v":0},{"$f":"COUNTIF($AP$30:INDIRECT(ADDRESS(29+$G$3,42,1,,\"Beregninger\")),\">\"&AM116)","v":0},{"$f":"COUNTIF($AP$30:INDIRECT(ADDRESS(29+$G$3,42,1,,\"Beregninger\")),\">\"&AN116)","v":0},{"$f":"COUNTIF($AP$30:INDIRECT(ADDRESS(29+$G$3,42,1,,\"Beregninger\")),\">\"&AO116)","v":0},{"$f":"COUNTIF($AP$30:INDIRECT(ADDRESS(29+$G$3,42,1,,\"Beregninger\")),\">\"&AP116)","v":0},{"$f":"COUNTIF($AP$30:INDIRECT(ADDRESS(29+$G$3,42,1,,\"Beregninger\")),\">\"&AQ116)","v":0},{"$f":"COUNTIF($AP$30:INDIRECT(ADDRESS(29+$G$3,42,1,,\"Beregninger\")),\">\"&AR116)","v":0},{"$f":"COUNTIF($AP$30:INDIRECT(ADDRESS(29+$G$3,42,1,,\"Beregninger\")),\">\"&AS116)","v":0},{"$f":"COUNTIF($AP$30:INDIRECT(ADDRESS(29+$G$3,42,1,,\"Beregninger\")),\">\"&AT116)","v":0}]
["Nej",null,1901,"-",1933,122,61,3,7,61,10,11]
["Nej",null,1934,"-",1966,123,62,3,7,61,10,11,null,null,"Målere fordelt i intervaller til grafer (intervaller er her angivet afrundet til én decimal, men optælling er ift. de præcise værdier):",null,null,null,null,null,null,null,null,null,null,null,null,null,null,null,null,null,null,null,null,"Målere fordelt i intervaller til grafer (intervaller er her angivet afrundet til én decimal, men optælling er ift. de præcise værdier):"]
["Nej",null,1967,"-",2000,124,62,3,7,62,10,11,null,null,null,null,"≤6,3",">6,3-7,1",">7,1-7,9",">7,9-8,7",">8,7-9,5",">9,5-10,2",">10,2-11,0",">11,0-11,8",">11,8-12,6",">12,6",null,null,null,null,null,null,null,null,null,null,null,"≤6,3",">6,3-7,1",">7,1-7,9",">7,9-8,7",">8,7-9,5",">9,5-10,2",">10,2-11,0",">11,0-11,8",">11,8-12,6",">12,6"]
["Nej",null,2001,"-",2033,125,63,3,7,62,10,11,null,null,"Målepunkt 1",null,{"$f":"COUNTIF($O$30:INDIRECT(ADDRESS(29+$G$3,15,1,,\"Beregninger\")),\"<=\"&Q114)","v":32},{"$f":"Q120-R120","v":0},{"$f":"R120-S120","v":0},0,0,0,0,0,0,{"$f":"Y120","v":0},null,null,null,null,null,null,null,null,null,"Målepunkt 1",null,{"$f":"COUNTIF($AJ$30:INDIRECT(ADDRESS(29+$G$3,36,1,,\"Beregninger\")),\"<=\"&AL114)","v":32},{"$f":"AL120-AM120","v":0},{"$f":"AM120-AN120","v":0},{"$f":"AN120-AO120","v":0},{"$f":"AO120-AP120","v":0},{"$f":"AP120-AQ120","v":0},{"$f":"AQ120-AR120","v":0},{"$f":"AR120-AS120","v":0},{"$f":"AS120-AT120","v":0},{"$f":"AT120","v":0}]
["Nej",null,2034,"-",2066,126,63,3,7,63,10,11,null,null,null,null,"≤5,0",">5,0-5,6",">5,6-6,3",">6,3-6,9",">6,9-7,5",">7,5-8,1",">8,1-8,8",">8,8-9,4",">9,4-10,0",">10,0",null,null,null,null,null,null,null,null,null,null,null,"≤5,0",">5,0-5,6",">5,6-6,3",">6,3-6,9",">6,9-7,5",">7,5-8,1",">8,1-8,8",">8,8-9,4",">9,4-10,0",">10,0"]
["Nej",null,2067,"-",{"$f":"C129-1","v":2100},127,64,3,7,63,10,11,null,null,"Målepunkt 2",null,{"$f":"COUNTIF($R$30:INDIRECT(ADDRESS(29+$G$3,18,1,,\"Beregninger\")),\"<=\"&Q115)","v":32},{"$f":"Q121-R121","v":0},0,0,0,0,{"$f":"V121-W121","v":0},0,0,{"$f":"Y121","v":0},null,null,null,null,null,null,null,null,null,"Målepunkt 2",null,{"$f":"COUNTIF($AM$30:INDIRECT(ADDRESS(29+$G$3,39,1,,\"Beregninger\")),\"<=\"&AL115)","v":32},{"$f":"AL121-AM121","v":0},{"$f":"AM121-AN121","v":0},{"$f":"AN121-AO121","v":0},{"$f":"AO121-AP121","v":0},{"$f":"AP121-AQ121","v":0},{"$f":"AQ121-AR121","v":0},{"$f":"AR121-AS121","v":0},{"$f":"AS121-AT121","v":0},{"$f":"AT121","v":0}]
["Nej",null,2101,"-",2133,128,64,3,7,64,10,11,null,null,null,null,"≤5,2",">5,2-5,9",">5,9-6,5",">6,5-7,2",">7,2-7,8",">7,8-8,5",">8,5-9,1",">9,1-9,8",">9,8-10,4",">10,4",null,null,null,null,null,null,null,null,null,null,null,"≤5,2",">5,2-5,9",">5,9-6,5",">6,5-7,2",">7,2-7,8",">7,8-8,5",">8,5-9,1",">9,1-9,8",">9,8-10,4",">10,4"]
["Nej",null,2134,"-",2166,129,65,3,7,64,10,11,null,null,"Målepunkt 3",null,{"$f":"COUNTIF($U$30:INDIRECT(ADDRESS(29+$G$3,21,1,,\"Beregninger\")),\"<=\"&Q116)","v":32},{"$f":"Q122-R122","v":0},0,0,0,0,0,0,0,{"$f":"Y122","v":0},null,null,null,null,null,null,null,null,null,"Målepunkt 3",null,{"$f":"COUNTIF($AP$30:INDIRECT(ADDRESS(29+$G$3,42,1,,\"Beregninger\")),\"<=\"&AL116)","v":32},{"$f":"AL122-AM122","v":0},{"$f":"AM122-AN122","v":0},{"$f":"AN122-AO122","v":0},{"$f":"AO122-AP122","v":0},{"$f":"AP122-AQ122","v":0},{"$f":"AQ122-AR122","v":0},{"$f":"AR122-AS122","v":0},{"$f":"AS122-AT122","v":0},{"$f":"AT122","v":0}]
["Nej",null,2167,"-",2199,130,65,3,7,65,10,11]
["Nej",null,2200,"-",2200,130,65,4,7,65,10,11]
["Nej",null,2201,"-",2233,131,66,4,7,65,10,11,null,null,null,null,null,null,null,null,null,null,null,null,null,null,null,null,null,null,null,null,null,null,null,"Stikprøve 1+2: Optælling af målere til grafer"]
["Nej",null,2234,"-",2266,132,66,4,7,66,10,11,null,null,null,null,null,null,null,null,null,null,null,null,null,null,null,null,null,null,null,null,null,null,null,"Målere fordelt i intervaller til grafer (intervaller er her angivet afrundet til én decimal, men optælling er ift. de præcise værdier):"]
["Nej",null,2267,"-",2300,133,67,4,7,66,10,11,null,null,null,null,null,null,null,null,null,null,null,null,null,null,null,null,null,null,null,null,null,null,null,null,null,"≤6,3",">6,3-7,1",">7,1-7,9",">7,9-8,7",">8,7-9,5",">9,5-10,2",">10,2-11,0",">11,0-11,8",">11,8-12,6",">12,6"]
["Nej",null,2301,"-",2333,134,67,4,7,67,10,11,null,null,null,null,null,null,null,null,null,null,null,null,null,null,null,null,null,null,null,null,null,null,null,"Målepunkt 1",null,{"$f":"Q126+AL126","v":64},{"$f":"R126+AM126","v":0},0,0,0,0,0,0,0,0]
["Nej",null,2334,"-",2366,135,68,4,7,67,10,11,null,null,null,null,null,null,null,null,null,null,null,null,null,null,null,null,null,null,null,null,null,null,null,null,null,"≤5,0",">5,0-5,6",">5,6-6,3",">6,3-6,9",">6,9-7,5",">7,5-8,1",">8,1-8,8",">8,8-9,4",">9,4-10,0",">10,0"]
["Nej",null,2367,"-",2400,136,68,4,7,68,10,11,null,null,null,null,null,null,null,null,null,null,null,null,null,null,null,null,null,null,null,null,null,null,null,"Målepunkt 2",null,{"$f":"Q128+AL128","v":64},{"$f":"R128+AM128","v":0},{"$f":"S128+AN128","v":0},{"$f":"T128+AO128","v":0},{"$f":"U128+AP128","v":0},{"$f":"V128+AQ128","v":0},{"$f":"W128+AR128","v":0},{"$f":"X128+AS128","v":0},{"$f":"Y128+AT128","v":0},{"$f":"Z128+AU128","v":0}]
["Nej",null,2401,"-",2433,137,69,4,7,{"$f":"F139-G139","v":68},10,11,null,null,null,null,null,null,null,null,null,null,null,null,null,null,null,null,null,null,null,null,null,null,null,null,null,"≤5,2",">5,2-5,9",">5,9-6,5",">6,5-7,2",">7,2-7,8",">7,8-8,5",">8,5-9,1",">9,1-9,8",">9,8-10,4",">10,4"]
[{"$f":"IF(AND($G$2>(C140-1),$G$2<(E140+1)),\"Ja\",\"Nej\")","v":"Nej"},null,2434,"-",2466,138,69,4,7,69,10,11,null,null,null,null,null,null,null,null,null,null,null,null,null,null,null,null,null,null,null,null,null,null,null,"Målepunkt 3",null,{"$f":"Q130+AL130","v":64},{"$f":"R130+AM130","v":0},{"$f":"S130+AN130","v":0},{"$f":"T130+AO130","v":0},{"$f":"U130+AP130","v":0},{"$f":"V130+AQ130","v":0},{"$f":"W130+AR130","v":0},{"$f":"X130+AS130","v":0},{"$f":"Y130+AT130","v":0},{"$f":"Z130+AU130","v":0}]
["Nej",null,2467,"-",2500,139,70,4,7,69,10,11]
["Nej",null,2501,"-",2533,140,70,4,7,70,10,11]
["Nej",null,2534,"-",2566,141,71,4,8,70,11,12]
["Nej",null,2567,"-",2600,142,71,4,8,71,11,12]
["Nej",null,2601,"-",2633,143,72,4,8,71,11,12]
["Nej",null,2634,"-",2666,144,72,4,8,72,11,12]
["Nej",null,2667,"-",2700,145,73,4,8,72,11,12]
["Nej",null,2701,"-",2733,146,73,4,8,73,11,12]
["Nej",null,2734,"-",2766,147,74,4,8,73,11,12]
["Nej",null,2767,"-",2800,148,74,4,8,74,11,12]
["Nej",null,2801,"-",2833,149,75,4,8,74,11,12]
["Nej",null,2834,"-",2866,150,75,4,8,75,11,12]
["Nej",null,2867,"-",{"$f":"C154-1","v":2900},151,76,4,8,75,11,12]
["Nej",null,2901,"-",2933,152,76,4,8,76,11,12]
["Nej",null,2934,"-",2966,153,77,4,8,76,11,12]
["Nej",null,2967,"-",3000,154,77,4,8,77,11,12]
["Nej",null,3001,"-",3033,155,78,4,8,77,11,12]
["Nej",null,3034,"-",3066,156,78,4,8,78,11,12]
["Nej",null,3067,"-",3100,157,79,4,8,78,11,12]
["Nej",null,3101,"-",3133,158,79,4,8,79,11,12]
["Nej",null,3134,"-",3166,159,80,4,8,79,11,12]
["Nej",null,3167,"-",3199,160,80,4,8,80,11,12]
["Nej",null,3200,"-",3200,160,80,5,9,80,12,13]